Cogmind - Beta 16 @@@ ROGUE MODE // 2025.11.02 @ 20:31:36 Player: Cherman0 Result: Destroyed by P-80 Master with Gamma Rifle Performance ------------- Evolutions (9) 4500 Regions Visited (32) 6400 Robots Destroyed (795) 3975 Value Destroyed (43762) 43762 Prototype IDs (132) 2640 Alien Tech Used (10) 2000 Bonus (25671) 25671 TOTAL SCORE: 88948 Bonus ------- High Alert Combat Kills 9432 Follower Combat Kills 6588 Destroyed Unchained 2000 Entered Garrisons 1600 Used RIF Installer 4500 Network Hubs Disabled 200 Aligned with FarCom 300 Built Enhanced Grunts 300 A7 Reached Mainframe 300 Met R17 at Cetus 500 Met R17 at Research 2000 Friendly Fire -2049 Cogmind --------- Core Integrity 0/1850 Matter 300/300 Energy 99/100 System Corruption 69% Temperature Cool (0) Movement Core (50) Location -1/Command Parts ------- > --- POWER (3) -------- (None) > --- PROPULSION (6) --- (None) > --- UTILITY (13) ----- Graphene Brace Relay Coupler [NC] (4) > --- WEAPON (4) ------- (None) > --- INVENTORY (7) ---- Particle Reactor Coolant Network Transdimensional Reconstructor Null Cannon Longsword +1 Peak State ------------ > --- POWER ------------ Particle Reactor Quantum Reactor Light Quantum Reactor > --- PROPULSION ------- Improved Heavy Treads Armored Heavy Treads Experimental Biometal Heavy Treads > --- UTILITY ---------- Coolant Network Huge Storage Unit Triangulator Advanced Sensor Array Experimental Signal Interpreter Advanced Targeting Computer Core Analyzer Advanced Transmission Jammer Graphene Brace Advanced Force Field Experimental System Shield Relay Coupler [NC] > --- WEAPON ----------- Cooled Nova Cannon KE Penetrator Railgun Railgun > --- INVENTORY -------- Particle Reactor Light Quantum Reactor Armored Heavy Treads Coolant Network Energy Well Experimental Matter Compressor Experimental Matter Compressor ID Mask Experimental Focal Shield Advanced Force Field Advanced Force Field Relay Coupler [Hunter] Relay Coupler [Behemoth] Long-range Tractor Beam Transdimensional Reconstructor Core Regenerator Subatomic Replicator Compact HERF Cannon Null Cannon KE Penetrator Hellfire Missile Launcher Advanced Remote Datajack Advanced Remote Datajack Plasma Cutter Longsword +1 [Rating: 206] Favorites ----------- Power Quantum Reactor Engine Heavy Ion Engine Power Core Nuclear Core Reactor Quantum Reactor Propulsion Light Treads Treads Light Treads Leg Biometal Leg Wheel High-density Centrium Wheel Hover Unit Hover Unit Flight Unit Cooled Field Propulsion Drive Utility Huge Storage Unit Device Improved Cooling System Storage Huge Storage Unit Processor Advanced Targeting Computer Hackware Relay Coupler [NC] Protection Hardened Medium Armor Plating Artifact Spacefold Activator Weapon Enhanced Autogun Energy Gun Enhanced Quantum Rifle Energy Cannon Cooled Nova Cannon Ballistic Gun Enhanced Autogun Ballistic Cannon Omega Cannon Launcher Improved Grenade Launcher Special Weapon Advanced Remote Datajack Slashing Weapon Longsword +1 Special Melee Weapon Datajack Build | -11 -10 -10 -9 -9 -9 -8 -8 -8 -8 -8 -8 -8 -7 -7 -6 -6 -5 -5 -4 -4 -4 -4 -4 -4 -3 -3 -2 -2 -2 -2 -1 -1 ------- Run | Yrd Mat Min Mat Min Exi Min Mat Gar Mat Gar Mat Gar Fac Gar Fac Gar Fac Gar Fac Ext Cet Arc Hub Gar Res Tes Res Qua Sec Gar Acc Com Slots Evolved 18 | . . . 2 . . . 2 . . . . . 2 . 2 . 2 . 2 . . . . . 2 . 2 . . . 2 . Power 1 | . . . . . . . . . . . . . . . . . . . 1 . . . . . . . . . . . . . Propulsion 4 | . . . 1 . . . . . . . . . 1 . . . . . . . . . . . 2 . . . . . . . Utility 11 | . . . 1 . . . 1 . . . . . 1 . 1 . 2 . 1 . . . . . . . 2 . . . 2 . Weapon 2 | . . . . . . . 1 . . . . . . . 1 . . . . . . . . . . . . . . . . . Parts Attached 425 | 3 14 5 22 5 3 1 17 6 14 13 1 13 3 13 6 7 11 8 19 18 17 11 . 6 19 56 11 33 27 15 18 10 Power 53 | . 2 1 1 . . . . . 1 1 . 1 . 1 2 1 2 1 3 4 5 . . . 1 7 1 5 3 6 2 2 Engine 6 | . 2 1 1 . . . . . . . . 1 . 1 . . . . . . . . . . . . . . . . . . Core 8 | . . . . . . . . . 1 1 . . . . 2 . 1 . . 2 1 . . . . . . . . . . . Reactor 39 | . . . . . . . . . . . . . . . . 1 1 1 3 2 4 . . . 1 7 1 5 3 6 2 2 Propulsion 93 | 2 1 . 6 4 . . 6 6 7 4 1 8 1 7 . . . 2 3 1 2 1 . . 1 12 5 7 2 1 2 1 Treads 72 | 2 1 . 6 4 . . 6 6 7 4 1 8 1 7 . . . 2 1 . 2 1 . . . . 1 6 2 1 2 1 Leg 17 | . . . . . . . . . . . . . . . . . . . 1 . . . . . 1 12 2 1 . . . . Wheel 2 | . . . . . . . . . . . . . . . . . . . . . . . . . . . 2 . . . . . Hover 1 | . . . . . . . . . . . . . . . . . . . . 1 . . . . . . . . . . . . Flight 1 | . . . . . . . . . . . . . . . . . . . 1 . . . . . . . . . . . . . Utility 162 | 1 4 2 7 1 . . 6 . 1 2 . 3 2 3 2 6 5 3 7 8 5 7 . 5 12 21 4 12 12 5 10 6 Device 73 | 1 3 1 2 . . . 1 . . 1 . 2 . 2 . 2 . 2 2 2 3 7 . 1 6 10 3 7 5 3 5 2 Storage 6 | . 1 1 1 . . . . . . . . . . . . . . . . 1 . . . . . . . 2 . . . . Processor 21 | . . . . . . . . . . . . . . . . . 3 1 2 . . . . . 4 2 . 2 4 1 1 1 Hackware 23 | . . . . . . . . . . 1 . . 1 . 1 1 1 . 2 . . . . 4 1 3 1 1 2 1 3 . Protection 38 | . . . 4 1 . . 5 . 1 . . 1 1 1 1 3 1 . 1 5 2 . . . 1 6 . . . . 1 3 Artifact 1 | . . . . . . . . . . . . . . . . . . . . . . . . . . . . . 1 . . . Weapon 117 | . 7 2 8 . 3 1 5 . 5 6 . 1 . 2 2 . 4 2 6 5 5 3 . 1 5 16 1 9 10 3 4 1 Energy Gun 29 | . 3 1 . . . . 2 . 1 . . . . 1 . . 1 1 3 . 1 1 . . . 4 1 8 1 . . . Energy Cannon 8 | . . . . . 1 . . . . . . . . . . . 1 . . . . . . 1 . 5 . . . . . . Ballistic Gun 57 | . 3 . 4 . . 1 2 . 4 3 . 1 . 1 2 . 2 . 2 5 4 2 . . 3 4 . . 7 3 3 1 Ballistic Cannon 4 | . . . . . . . . . . . . . . . . . . . . . . . . . 1 2 . 1 . . . . Launcher 8 | . . . 3 . 2 . . . . . . . . . . . . . 1 . . . . . 1 . . . 1 . . . Special Weapon 7 | . 1 . . . . . . . . 2 . . . . . . . 1 . . . . . . . 1 . . 1 . 1 . Impact Weapon . | . . . . . . . . . . . . . . . . . . . . . . . . . . . . . . . . . Slashing Weapon 2 | . . 1 . . . . 1 . . . . . . . . . . . . . . . . . . . . . . . . . Piercing Weapon . | . . . . . . . . . . . . . . . . . . . . . . . . . . . . . . . . . Special Melee Weapon 2 | . . . 1 . . . . . . 1 . . . . . . . . . . . . . . . . . . . . . . Unidentified Prototypes 54 | . 1 . 1 . . . 2 . 1 . . . . . . . 3 . . 1 6 . . . 9 15 1 5 6 2 1 . Corrupted Parts 2 | . . . . . . . . . . . . . . . . . . . . . . 2 . . . . . . . . . . System Corruption 17 | . . . . . . . . . . . . . . . . . . . . . . 17 . . . . . . . . . . Parts Lost 90 | . 1 2 1 . . 1 . . 2 2 . 2 . 1 1 3 1 4 3 5 1 . . . . 19 3 7 4 . 5 22 Power 11 | . . 1 . . . . . . . . . 1 . . . . . . . 1 . . . . . 3 . 1 1 . . 3 Propulsion 12 | . . . . . . . . . . 2 . 1 . . . . . 1 . . . . . . . 3 . . . . 1 4 Utility 39 | . 1 . 1 . . 1 . . 1 . . . . 1 . 2 1 2 1 2 1 . . . . 8 3 2 1 . 2 9 Weapon 28 | . . 1 . . . . . . 1 . . . . . 1 1 . 1 2 2 . . . . . 5 . 4 2 . 2 6 Highest Loss Streak 21 | . 1 2 1 . . 1 . . 2 2 . 1 . 1 1 1 1 2 1 5 1 . . . . 11 1 2 1 . 3 21 To Critical Strikes 2 | . . . . . . . . . . . . . . . . . . . . . . . . . . 1 1 . . . . . Average Backups 23 | 4 11 14 21 24 24 24 24 24 24 24 25 24 24 23 22 22 22 23 23 23 24 23 24 23 24 23 23 22 22 24 24 24 Power 1 | 1 1 . . 1 1 1 1 1 1 1 1 . . 1 2 2 2 1 . . 1 1 1 1 1 1 1 1 . . 1 1 Propulsion 2 | 2 2 3 4 5 4 4 4 4 4 3 3 3 3 2 2 2 2 1 1 1 1 . 1 1 . . 1 . . 1 . . Utility 9 | . 1 4 6 6 8 8 8 9 9 10 11 11 11 9 9 7 6 8 13 11 12 11 11 11 14 12 10 7 9 11 11 10 Weapon 8 | 1 6 7 9 10 11 10 9 8 7 8 8 8 8 8 7 9 10 9 7 8 8 8 9 8 6 7 8 7 5 7 6 6 Tool/Special . | . . . . . . . . . . . . . . . . . . . . . . . . . . . . . . . . . Unused Backups 90 | 8 2 1 10 . . . 8 3 2 2 . . . 2 . 5 . 6 2 2 3 . . 3 2 7 1 4 4 2 1 10 Power 12 | 1 . . 1 . . . 1 . . . . . . 1 . 2 . 1 . . 1 . . . . 1 . . . . 1 2 Propulsion 11 | 4 . . 2 . . . 1 . 1 . . . . . . . . . . . 1 . . . 1 . 1 . . . . . Utility 41 | 1 2 . 1 . . . 3 3 . 2 . . . . . 2 . 4 2 2 1 . . 3 1 2 . 2 2 2 . 6 Weapon 22 | 2 . 1 6 . . . 3 . 1 . . . . 1 . 1 . 1 . . . . . . . 4 . 1 1 . . . Tool/Special 4 | . . . . . . . . . . . . . . . . . . . . . . . . . . . . 1 1 . . 2 Average Slot Usage (%) 91 | . 97 99 99 100 100 99 98 100 97 99 100 99 99 92 83 85 87 87 88 88 88 88 89 89 84 88 87 85 81 82 83 78 Engine 3 | . 13 13 10 11 11 11 8 9 7 . . 5 7 7 2 . . . . . . . . . . . . . . . . . Reactor 4 | . . . . . . . . . . . . . . . . 1 5 5 9 8 7 10 10 10 9 8 7 7 8 12 11 10 Treads 18 | . 27 28 32 33 33 33 27 27 27 26 27 26 29 23 13 13 11 11 10 10 10 10 10 10 13 4 . 8 12 12 10 10 Leg 1 | . . . . . . . . . . . . . . . . . . . . . . . . . . 15 15 4 . . . . Device 13 | . 11 14 16 1 . . 9 9 9 9 9 9 15 14 13 19 15 13 12 14 11 14 15 15 16 11 14 18 10 18 22 20 Storage 6 | . 14 14 11 11 11 11 9 9 9 9 9 9 7 7 6 6 5 5 5 5 5 5 5 5 4 4 4 5 3 4 3 2 Processor 5 | . . . . . . . . . . . . . . . . . 7 17 14 10 10 10 10 10 9 7 8 9 11 10 11 10 Hackware 4 | . . . . . . . . . . 4 . . 5 3 6 . 4 . 7 10 10 10 10 9 6 10 14 9 11 6 6 3 Protection 8 | . . . 4 20 22 21 17 18 16 13 18 18 8 11 10 12 10 7 5 5 8 5 5 5 4 6 4 4 3 . . 2 Energy Gun 3 | . 14 27 . . . 7 1 1 4 . . . . . . . . . 9 4 . . . . . 2 6 14 4 . . . Ballistic Gun 16 | . 13 . 18 21 15 14 25 24 22 22 27 23 22 20 24 22 22 18 8 14 20 20 21 16 18 13 7 1 7 14 12 11 Peak Build Rating 206 | 7 12 13 23 23 28 24 37 41 36 45 39 48 38 79 81 91 97 112 120 119 140 140 137 152 176 192 203 202 196 202 206 204 Average Rating 100 | 6 9 12 19 21 21 23 32 35 33 37 39 38 37 54 77 85 95 103 114 114 129 137 137 143 163 162 195 185 186 190 197 188 On Entrance 89 | 6 7 12 13 23 21 23 23 35 34 36 39 39 36 37 72 78 87 97 111 111 117 139 137 137 152 173 187 192 189 190 187 197 Avg Prop Armor Cover (%) 10 | . . . . . . . . . . . . 4 . . . . . . . . . . . . . 2 . 13 . . . 40 Naked Turns . | . . . . . . . . . . . . . . . . . . . . . . . . . . . . . . . . . Heaviest Build 204 | 14 32 52 108 104 111 105 121 125 118 121 114 122 116 124 124 133 140 135 148 144 162 162 155 173 174 172 181 171 187 189 185 204 Greatest Support 240 | 40 40 40 60 60 60 60 60 60 60 60 60 60 80 150 150 150 150 150 150 150 160 160 160 160 240 240 182 190 205 220 220 215 Greatest Overweight (x) 4 | . 1 1 1 1 1 1 2 2 1 2 1 2 1 2 . . . . 1 1 1 1 . 1 1 2 4 1 . . . . Average Overweight (x) . | . . . . 1 1 1 1 1 1 1 1 1 1 . . . . . . . . . . . . . . . . . . . Largest Inventory Capacity 27 | 8 15 20 25 25 25 25 25 25 25 25 25 25 25 25 25 25 25 25 25 25 25 25 25 25 25 25 25 25 27 27 27 27 Average Capacity 24 | 8 14 17 23 25 25 25 25 25 25 25 25 25 25 25 25 25 25 25 25 25 25 25 25 25 25 25 25 25 25 27 27 26 Most Carried 27 | 6 15 17 25 25 25 25 25 25 25 25 25 25 25 25 25 25 25 25 25 25 25 25 25 25 25 25 25 25 27 27 27 27 Average Carried 23 | 4 11 14 21 24 24 24 24 24 24 24 25 24 24 24 24 24 24 24 24 24 24 24 25 24 24 24 24 24 24 26 26 25 Final Capacity 27 | 8 15 20 25 25 25 25 25 25 25 25 25 25 25 25 25 25 25 25 25 25 25 25 25 25 25 25 25 25 27 27 27 7 Final Carried 27 | 5 15 17 25 25 25 25 25 25 25 25 25 25 25 25 24 25 25 25 23 25 25 25 25 25 24 25 23 25 27 27 27 6 Class Distribution -------------------- 25% | Scavenger-Tank 17% | Botlord-Tank 15% | Mutant 8% | Bothacker-Tank 6% | Botlord-Gunner 6% | Scavenger-Mutant 5% | Scavenger-Gunner 3% | Tank 3% | Bothacker-Gunner Dominant Class ---------------- Mutant | -10/Materials Mutant | -10/Mines Mutant | -9/Materials Mutant | -9/Mines Scavenger-Mutant | -9/Exiles Scavenger-Mutant | -8/Mines Scavenger-Tank | -8/Materials Scavenger-Tank | -8/Garrison Tank | -8/Materials Tank | -8/Garrison Commander-Tank | -8/Materials Bothacker-Tank | -8/Garrison Bothacker-Tank | -7/Factory Bothacker-Tank | -7/Garrison Bothacker-Tank | -6/Factory Scavenger-Tank | -6/Garrison Commander-Tank | -5/Factory Botlord-Tank | -5/Garrison Botlord-Tank | -4/Factory Botlord-Gunner | -4/Extension Botlord-Tank | -4/Cetus Botlord-Tank | -4/Archives Botlord-Tank | -4/Hub_04(d) Botlord-Tank | -4/Garrison Botlord-Tank | -3/Research Botlord-Gunner | -3/Testing Botlord-Gunner | -2/Research Scavenger-Gunner | -2/Quarantine Scavenger-Tank | -2/Section 7 Scavenger-Tank | -2/Garrison Scavenger-Tank | -1/Access Scavenger-Tank | -1/Command Resources | -11 -10 -10 -9 -9 -9 -8 -8 -8 -8 -8 -8 -8 -7 -7 -6 -6 -5 -5 -4 -4 -4 -4 -4 -4 -3 -3 -2 -2 -2 -2 -1 -1 ----------- Run | Yrd Mat Min Mat Min Exi Min Mat Gar Mat Gar Mat Gar Fac Gar Fac Gar Fac Gar Fac Ext Cet Arc Hub Gar Res Tes Res Qua Sec Gar Acc Com Matter Collected 35781 | 294 518 96 1146 231 30 173 860 879 677 1428 . 1618 304 2576 727 1817 796 1229 847 1737 478 575 96 871 700 3777 1347 1435 2777 2631 2225 886 Remotely 2278 | . . . . . . . . . . 383 . 260 122 506 66 337 . . . . . . . . . . . . . . 604 . Salvage Created 43263 | 228 820 247 1489 60 . 249 1396 1136 1232 1231 22 1404 255 2171 666 1445 1365 1316 2120 2501 324 386 75 719 1053 3151 1383 2473 4071 3131 3120 2024 Parts 2154 | 16 57 17 97 7 . 13 91 69 81 84 3 65 11 108 26 57 57 55 82 82 20 35 1 35 49 160 72 149 176 125 173 81 Haulers Intercepted 15 | . 1 . 5 . . . 5 . 1 . . . . . . . 1 . . . . . . . . 2 . . . . . . Recyclers Shooed 12 | 1 2 . 3 . . . . . . . . . . . . . 1 . . 3 . . . . . . . . . . . 2 Parts Field Recycled . | . . . . . . . . . . . . . . . . . . . . . . . . . . . . . . . . . Retrieved Matter . | . . . . . . . . . . . . . . . . . . . . . . . . . . . . . . . . . Parts Self-Destructed . | . . . . . . . . . . . . . . . . . . . . . . . . . . . . . . . . . Prevented . | . . . . . . . . . . . . . . . . . . . . . . . . . . . . . . . . . Parts Restored . | . . . . . . . . . . . . . . . . . . . . . . . . . . . . . . . . . Kills | -11 -10 -10 -9 -9 -9 -8 -8 -8 -8 -8 -8 -8 -7 -7 -6 -6 -5 -5 -4 -4 -4 -4 -4 -4 -3 -3 -2 -2 -2 -2 -1 -1 ------- Run | Yrd Mat Min Mat Min Exi Min Mat Gar Mat Gar Mat Gar Fac Gar Fac Gar Fac Gar Fac Ext Cet Arc Hub Gar Res Tes Res Qua Sec Gar Acc Com Combat Hostiles Destroyed 674 | . 19 8 26 9 . 8 23 27 26 32 . 27 4 37 13 26 18 27 31 30 4 1 1 16 16 34 16 35 51 44 47 18 Melee 7 | . . . . . . . . . . . . . . 1 . 4 . 1 . . . . . 1 . . . . . . . . Guns 534 | . 15 3 26 5 . 4 16 22 17 26 . 26 4 30 8 20 18 16 24 30 4 1 1 7 16 30 15 28 39 32 35 16 Cannons 20 | . . . . . . . . . . . . . . . . . . . . . . . . . . 1 . 3 7 1 6 2 AOE 101 | . 4 5 . 4 . 4 6 5 9 6 . 1 . 6 5 2 . 10 3 . . . . 8 . . 1 1 4 11 6 . Classes Destroyed 26 | 2 5 . 3 2 . 1 . 3 1 . . . . 3 1 1 . . . 1 . . . . 2 1 . . . . . . Worker 19 | . . . 1 . . 1 6 . 3 . . . . . . . . . 1 . . . . . . 4 . . . . 3 . Builder 16 | . 1 . . . . . 1 . . . . . . . 1 . . . 2 1 . . . . . 3 . . 5 . 2 . Tunneler 13 | 5 2 . 2 . . . . . . . . . . . 1 . . . . 1 . . . . . . 2 . . . . . Hauler 15 | . 1 . 5 . . . 5 . 1 . . . . . . . 1 . . . . . . . . 2 . . . . . . Recycler 14 | 1 1 . 2 . . . 1 . . . . . . . . . 1 . 5 2 . . . . . . . . 1 . . . Mechanic 3 | . . . . . . . . . 2 . . 1 . . . . . . . . . . . . . . . . . . . . Operator 14 | . . . 1 . . . . . . . . . . . . . 1 . . 1 . 9 . . . 1 1 . . . . . Watcher 26 | . 3 . 5 . . . 5 . 4 . 1 . . . . . . 1 1 1 . . . . . 1 1 1 2 . . . Swarmer 122 | . 9 6 9 4 . 4 10 4 7 8 . . . . . . . 7 9 1 . . . 6 2 4 . 4 4 14 10 . Cutter 11 | . . . . . . . . . . . . . . 7 . . . . . . . . . . . . . . . 4 . . Saboteur 6 | . . . . . . . . . . . . . . 6 . . . . . . . . . . . . . . . . . . Grunt 222 | . 10 2 7 . . 3 4 5 11 7 . 10 1 14 6 10 7 15 8 17 . . . 6 8 10 6 8 15 7 14 11 Brawler 15 | . . . . . . . . 2 . . . 4 . . 1 3 1 . . . . . . . 1 . . . 1 . 2 . Duelist 7 | . . . . . . . . 1 . . . . . . 1 . . . . 2 . . . . . . . . 2 . 1 . Protector 2 | . . . . . . . . . . . . . . . 1 1 . . . . . . . . . . . . . . . . Researcher 3 | . . . . . . . . . . . . . . . . . . . . . . . . . . 3 . . . . . . Sentry 104 | . . . 10 . . . 8 11 8 8 . 5 3 7 3 4 5 2 3 7 . 1 1 2 1 . 1 . 6 5 1 2 Demolisher 3 | . . . . 1 . . . . . . . . . . . 1 . . . . . . . . 1 . . . . . . . Specialist 5 | . . . . . . . . . . . . . . 1 . . . 1 . . . . . . . . . . 1 2 . . Hunter 43 | . . . . . . 1 1 1 . 3 . . . 1 . 1 5 1 2 . . . . . . 6 2 2 9 4 4 . Programmer 104 | . . . . . . . . 3 . 6 . 7 . 1 1 5 . 1 9 1 . . . 2 . 12 7 10 12 7 15 5 Heavy 2 | . . . . . . . . . . . . . . . . . . . . 1 . . . . . . . . 1 . . . Behemoth 3 | . . . . . . . . . . . . . . . . 1 . . . 1 . . . . . . . . . 1 . . Cetus Guard 4 | . . . . . . . . . . . . . . . . . . . . . 4 . . . . . . . . . . . Quarantine Guard 11 | . . . . . . . . . . . . . . . . . . . . . . . . . . . . 11 . . . . Striker 2 | . . . . . . . . . . . . . . . . . . . . . . . . . 2 . . . . . . . Executioner 1 | . . . . . . . . . . . . . . . . . . . . . . . . . 1 . . . . . . . Protovariant G 1 | . . . . . . . . . . . . . . . . . . . . . . . . . . 1 . . . . . . Assembled 4 | . . . . 4 . . . . . . . . . . . . . . . . . . . . . . . . . . . . Thug 1 | . . 1 . . . . . . . . . . . . . . . . . . . . . . . . . . . . . . Savage 1 | . . . . . . . . . . . . 1 . . . . . . . . . . . . . . . . . . . . Best Kill Streak 12 | 2 4 5 4 4 . 4 7 3 12 11 1 7 2 6 6 4 8 5 8 6 2 2 1 4 4 7 4 4 6 10 10 4 Combat Bots Only 11 | . 4 5 3 4 . 4 5 3 9 11 . 7 2 6 5 4 8 5 7 5 2 1 1 4 4 6 3 4 6 10 10 4 Max Kills in Single Turn 6 | 1 2 3 2 4 . 2 3 2 4 3 1 2 1 2 6 3 2 3 3 2 1 1 1 3 2 2 2 2 4 3 3 2 Gunslinging 1 | . . . . . . . . . 1 1 . 1 . . . . . 1 1 1 . . . . 1 1 . 1 1 . 1 . Exploded 5 | . 2 3 . 4 . 2 3 2 3 3 . 1 . 2 5 1 . 3 3 . . . . 3 . . 1 1 4 3 3 . Melee 1 | . . . . . . . . . . . . . . 1 . 1 . 1 . . . . . 1 . . . . . . . . Uniques/NPCs Destroyed 3 | . . . . . . . . . . . . . . . . . . . . 1 1 . . . . 1 . . . . . . CL-0N3 (-4/Extension) A7 (-4/Cetus) DW-4LL (-3/Testing) Combat | -11 -10 -10 -9 -9 -9 -8 -8 -8 -8 -8 -8 -8 -7 -7 -6 -6 -5 -5 -4 -4 -4 -4 -4 -4 -3 -3 -2 -2 -2 -2 -1 -1 -------- Run | Yrd Mat Min Mat Min Exi Min Mat Gar Mat Gar Mat Gar Fac Gar Fac Gar Fac Gar Fac Ext Cet Arc Hub Gar Res Tes Res Qua Sec Gar Acc Com Hostile Shots Fired 3881 | . 55 18 120 18 . 25 78 53 72 131 . 105 38 257 101 163 78 85 129 83 13 4 4 35 23 662 135 253 390 179 288 286 Missed 1078 | . 15 7 28 4 . 8 23 19 21 40 . 27 11 86 33 49 17 21 39 27 3 . 1 10 5 179 39 68 99 39 93 67 Hits 2803 | . 40 11 92 14 . 17 55 34 51 91 . 78 27 171 68 114 61 64 90 56 10 4 3 25 18 483 96 185 291 140 195 219 Melee 35 | . . . . 7 . . . 1 . . . . . 11 . . . . . 1 . . . . . . . . 7 6 2 . Projectile 2768 | . 40 11 92 7 . 17 55 33 51 91 . 78 27 160 68 114 61 64 90 55 10 4 3 25 18 483 96 185 284 134 193 219 AOE 46 | . . . . 1 . . . . . . . 2 . 6 . 4 . 2 . 1 . . . . 1 . . . . 3 . 26 Critical Strikes 156 | . 2 . 6 . . 1 . 1 1 5 . 5 . 7 . 3 . 2 2 1 2 . . 4 1 16 10 15 23 7 19 23 Actively Blocked 56 | . . . . . . . . . . . . . . . . . . . 1 1 2 . . 4 . . 1 11 . 5 10 21 Part Disruptions 15 | . . . . . . . . . . 1 . 1 . . . . . . . . . . . 1 . 4 1 3 . . 1 3 Damage Taken 48334 | . 463 141 1045 354 . 295 589 512 690 1298 . 1352 211 1963 705 1953 1272 1191 1912 1461 368 125 83 469 276 7078 1468 4816 5259 1985 2207 6793 Core 4723 | . 80 . 172 . . 63 30 47 4 143 . 43 11 125 12 50 61 110 128 51 . . . 17 11 489 98 221 380 48 117 2212 Absorbed by Shields 9015 | . . . . . . . . . . 9 . . . 42 . . . . . 84 39 . . 44 288 527 564 1059 1672 1512 2202 973 Reduced by Siege Mode 1020 | . . . . . . . . . . . . . . . . 39 21 . . . . . . . . . . 467 196 244 38 15 Redirected to Shielding 45 | . . . . . . . . . . . . . . . . . . . . . . . . . . 45 . . . . . . Ignored by Resistances 998 | . . . . . . . 100 46 44 . . . . . . . . . . . . . . . . . . . . 395 413 . Regen/Repaired (Parts) 9875 | . 283 . 256 . . . 68 . 94 392 . 375 312 . 549 1246 776 . 372 . . . . . 320 1007 170 707 1778 540 630 . Core Remaining (%) 70 | 100 . 68 . . . 41 . . . . . 51 . 80 . 92 . 82 . . . . . 82 . 61 . . . 49 . . Volleys Fired 2097 | 16 56 7 106 14 . 13 63 74 52 103 1 82 18 121 44 104 44 59 72 103 14 17 4 33 19 158 73 126 178 122 113 88 Largest 4 | 2 2 2 2 2 . 2 3 3 3 3 3 3 3 3 4 4 4 4 4 4 4 4 4 4 4 4 4 4 4 4 4 4 Hottest 273 | 40 100 90 50 72 . 73 96 96 103 75 75 75 75 80 115 110 123 168 273 225 140 140 140 140 140 208 181 260 253 138 153 185 Shots Fired 5554 | 32 102 14 212 28 . 24 169 159 143 249 3 231 42 315 134 294 152 155 206 281 57 66 16 80 70 385 195 378 464 331 363 204 Gun 5024 | 32 94 14 212 26 . 22 166 153 137 225 3 223 37 302 127 278 144 130 190 245 57 65 16 64 70 337 167 346 376 293 319 154 Cannon 235 | . . . . . . . . . . . . 1 . . . . . . . . . . . 1 . 28 10 24 73 16 33 49 Launcher 73 | . . . . 2 . 2 3 6 6 5 . 2 . 9 1 5 . 16 1 . . . . 5 . . . . 1 6 3 . Special 222 | . 8 . . . . . . . . 19 . 5 5 4 6 11 8 9 15 36 . 1 . 10 . 20 18 8 14 16 8 1 Kinetic 4186 | 32 50 . 212 26 . 11 147 144 115 225 3 223 37 302 127 278 144 125 77 207 57 65 16 64 70 301 73 22 267 293 319 154 Thermal 961 | . 8 . . . . . . . 22 . . . . . . . . 5 113 38 . . . 1 . 53 103 338 182 16 33 49 Explosive 73 | . . . . 2 . 2 3 6 6 5 . 2 . 9 1 5 . 16 1 . . . . 5 . . . . 1 6 3 . Electromagnetic 120 | . 44 14 . . . 11 19 9 . . . 1 . . . . . . . . . . . . . 11 1 10 . . . . Robot Hit Streak 88 | 7 13 5 31 10 . 8 13 22 12 18 13 12 14 25 14 23 28 16 23 29 11 11 11 23 19 19 14 88 31 41 20 21 Robot Miss Streak 8 | 3 5 2 4 1 . 2 6 4 3 6 1 4 1 4 4 8 3 6 3 3 2 2 2 3 5 6 2 4 4 4 7 3 Penetration Max 2 | . . . . . . . 1 . . . . . . 1 1 2 2 1 1 1 1 2 . 1 1 1 1 . 2 2 1 1 Secondary Targets 111 | . 3 1 3 1 . 1 3 2 4 5 . 8 . 6 1 2 4 5 3 5 2 . . 2 5 9 2 8 8 4 12 2 Max Gunslinging Chain 2 | . 1 1 1 1 . 1 1 1 1 1 . 1 . 1 1 1 1 1 1 1 1 . . 1 2 1 1 1 1 1 2 1 Shots Hit Robots 3826 | 21 67 15 146 19 4 18 106 86 95 164 2 149 34 233 86 209 117 98 154 199 41 41 9 55 39 246 145 278 338 242 231 139 Core Hits 1794 | 9 40 12 59 16 . 16 59 48 62 60 2 55 11 94 34 77 57 70 117 121 22 21 2 26 27 104 44 99 145 111 115 59 Critical Kills 60 | . . . 1 . . . 1 1 . . . . . . . . 2 2 . 3 . 3 . 1 5 18 9 1 4 2 3 4 Critical Parts Destroyed 92 | . 1 . 1 . . . 1 . 1 2 . 1 . 3 1 1 . 2 1 5 . 2 1 1 5 29 10 7 4 3 4 6 Critical Strikes 183 | . 1 1 2 . . . 2 1 2 2 . 1 . 4 1 4 2 6 1 9 . 5 1 2 11 56 21 14 11 6 7 10 Burn 12 | . . . . . . . . . . . . . . . . . . . . . . . . . . 4 2 6 . . . . Meltdown 1 | . . . . . . . . . . . . . . . . . . . . . . . . . . . . . 1 . . . Destroy 164 | . 1 . 2 . . . 2 1 2 2 . 1 . 3 1 2 2 4 1 9 . 5 1 2 11 52 19 8 10 6 7 10 Sever 6 | . . 1 . . . . . . . . . . . 1 . 2 . 2 . . . . . . . . . . . . . . Melee Attacks 384 | . . 3 1 . 4 . 1 2 . 23 . 18 . 64 3 36 . 53 10 1 . . . 34 1 16 1 7 8 60 7 31 Impact . | . . . . . . . . . . . . . . . . . . . . . . . . . . . . . . . . . Slashing 376 | . . 3 1 . . . 1 2 . 19 . 18 . 64 3 36 . 53 10 1 . . . 34 1 16 1 7 8 60 7 31 Piercing . | . . . . . . . . . . . . . . . . . . . . . . . . . . . . . . . . . Sneak Attacks 18 | . . 3 . . 4 . . . . 4 . . . 1 1 . . 1 1 . . . . 1 . 1 . . 1 . . . Combat Hostiles . | . . . . . . . . . . . . . . . . . . . . . . . . . . . . . . . . . Follow-up Attacks . | . . . . . . . . . . . . . . . . . . . . . . . . . . . . . . . . . Damage Inflicted 113067 | 226 1309 623 2257 518 . 630 2509 2144 2803 2963 32 2987 493 6532 2899 5489 2449 3873 4609 5158 1530 1247 252 2425 1513 7715 3331 8775 11439 10391 7876 6070 Guns 83624 | 223 993 166 2183 286 . 308 1961 1596 1594 2458 32 2761 493 3655 1549 3344 2402 1669 3813 5144 1530 1247 252 1218 1496 6736 3161 8334 8584 4966 6285 3185 Cannons 6303 | . . . . . . . . . . . . . . . . . . . . . . . . . . 467 170 441 2289 1593 649 694 Explosions 13828 | . 300 223 . 201 . 253 499 548 1209 502 . 226 . 843 1266 769 . 1766 619 . . . . 986 . . . . 452 2242 924 . Melee 8865 | . . 224 . . . . . . . . . . . 2020 84 1376 . 438 177 . . . . 221 . 465 . . 90 1590 . 2180 Ramming 447 | 3 16 10 74 31 . 69 49 . . 3 . . . 14 . . 47 . . 14 . . . . 17 47 . . 24 . 18 11 Kinetic 64551 | 223 387 . 2183 286 . 137 1699 1439 1200 2458 32 2761 493 3655 1549 3344 2402 1530 1476 4229 1530 1247 252 1218 1496 6224 510 227 5928 4966 6285 3185 Thermal 24906 | . 300 223 . . . . 74 . 394 . . . . . 1046 . . 139 2337 915 . . . . . 512 2821 8264 4945 1593 649 694 Explosive 12158 | . . . . 201 . 253 425 548 1209 502 . 199 . 843 220 769 . 1766 619 . . . . 986 . . . . 452 2242 924 . Electromagnetic 2140 | . 606 166 . . . 171 262 157 . . . 27 . . . . . . . . . . . . . 467 . 284 . . . . Impact . | . . . . . . . . . . . . . . . . . . . . . . . . . . . . . . . . . Slashing 8865 | . . 224 . . . . . . . . . . . 2020 84 1376 . 438 177 . . . . 221 . 465 . . 90 1590 . 2180 Piercing . | . . . . . . . . . . . . . . . . . . . . . . . . . . . . . . . . . Highest Corruption 69 | . . . . . . . . 1 1 1 1 8 . 1 1 3 . 1 5 6 6 15 . 1 . 44 12 17 26 28 29 69 Average Corruption 11 | . . . . . . . . 1 1 1 1 5 . 1 1 1 . 1 3 5 6 6 . 1 . 37 8 16 18 27 16 33 Corruption Purged 23 | . . . . . . . . . . . . . . . . . . . . . . 23 . . . . . . . . . . Corruption Blocked . | . . . . . . . . . . . . . . . . . . . . . . . . . . . . . . . . . Effects 995 | . . . . . . . . 6 14 16 1 46 . 16 1 11 . 3 17 55 21 10 . 12 . 121 13 171 145 148 77 91 Message Errors 223 | . . . . . . . . 2 5 5 . 10 . 3 . 6 . 2 4 16 3 3 . 3 . 25 . 36 30 33 16 21 Matter Fused 205 | . . . . . . . . 1 1 2 . 8 . 4 . 2 . 1 2 13 5 2 . 1 . 29 3 41 30 37 9 14 Heat Flow Errors 114 | . . . . . . . . . . 3 . 5 . 2 . 1 . . 3 9 1 2 . 1 . 12 1 20 17 18 13 6 Energy Discharges 107 | . . . . . . . . 2 2 2 1 7 . 1 1 2 . . 3 7 2 . . 3 . 8 4 19 12 17 6 8 Parts Rejected 16 | . . . . . . . . . . . . . . . . . . . 1 1 . . . . . 2 1 1 5 1 2 2 Parts Fused 12 | . . . . . . . . . . . . . . 1 . . . . . 1 . . . 1 . 2 . 1 2 1 . 3 Data Loss (minor) 113 | . . . . . . . . 1 3 2 . 10 . 1 . . . . 2 2 4 . . 2 . 7 1 25 20 18 9 6 Data Loss (major) 34 | . . . . . . . . . 2 2 . 3 . 1 . . . . . 1 1 2 . . . 2 1 4 5 3 3 4 Misfires 46 | . . . . . . . . . 1 . . 2 . 2 . . . . 1 1 3 1 . . . 9 . 7 4 3 6 6 Alerts 26 | . . . . . . . . . . . . 1 . 1 . . . . 1 2 . . . . . 3 1 7 2 2 4 2 Misdirections 15 | . . . . . . . . . . . . . . . . . . . . . . . . . . 5 . . 1 . . 9 Weapon Failures 84 | . . . . . . . . . . . . . . . . . . . . 2 2 . . 1 . 17 1 10 17 15 9 10 Overload Shots 4 | . . . . . . . . . . . . . . . . . . . . . . . . . . . . . . . . 4 Overflow Damage 1566 | . . . . . . . 29 26 97 2 . . . 244 64 35 17 45 97 . . . . 92 . 33 19 51 220 318 116 61 Projectiles 281 | . . . . . . . . . . . . . . . . . . . . . . . . . . . 19 51 95 . 116 . Explosions 753 | . . . . . . . 29 26 97 2 . . . 28 64 . . 45 97 . . . . 30 . . . . 50 285 . . Melee 532 | . . . . . . . . . . . . . . 216 . 35 17 . . . . . . 62 . 33 . . 75 33 . 61 Knockbacks 3 | . . . . . . 1 . . . . . . . . . . . . . 1 . . . . . . . 1 . . . . Impact 2 | . . . . . . 1 . . . . . . . . . . . . . 1 . . . . . . . . . . . . Kinetic 1 | . . . . . . . . . . . . . . . . . . . . . . . . . . . . 1 . . . . Secondary . | . . . . . . . . . . . . . . . . . . . . . . . . . . . . . . . . . Self-Inflicted Damage 213 | . 59 19 . 2 . . . 35 . . . 55 . 38 . . . . . . . . . . . . . . . . . 5 Shots 8 | . 3 1 . 1 . . . 1 . . . 1 . 1 . . . . . . . . . . . . . . . . . . Rammed 37 | 1 5 2 6 4 . 3 4 . . 1 . . . 1 . . 1 . . 1 . . . . 1 . . . 2 . 1 4 Targets Rammed 43 | 1 5 2 7 4 . 4 5 . . 1 . . . 1 . . 1 . . 1 . . . . 1 3 . . 2 . 1 4 Kicked 3 | . . . . . . . . . . . . . . . . . . . . . . . . . . 3 . . . . . . Crushed 3 | . . . 1 . . 1 1 . . . . . . . . . . . . . . . . . . . . . . . . . Highest Temperature 362 | . 321 150 7 24 . 294 93 . 27 206 . 235 5 213 122 331 61 268 180 270 55 51 . 96 234 327 362 229 194 172 195 117 Average Temperature 69 | . 72 69 5 13 . 138 28 . 13 38 . 55 5 53 40 99 16 48 71 35 20 40 . 28 112 98 77 60 66 65 83 50 Received Heat Transfer 7216 | . 153 54 384 49 . 153 144 180 315 328 . 366 39 510 225 759 216 357 240 261 9 12 . 69 58 515 85 520 572 237 127 279 Effects 7 | . 2 . . . . . . . . . . . . . . . . 1 . . . . . . 3 1 . . . . . . Energy Bleed 2 | . . . . . . . . . . . . . . . . . . 1 . . . . . . . 1 . . . . . . Interference 5 | . 2 . . . . . . . . . . . . . . . . . . . . . . . 3 . . . . . . . Siege Activations 29 | . . . . . . . . . . . . . . . . 2 2 . 1 1 . . . . . . . 10 3 7 1 2 Total Turns 461 | . . . . . . . . . . . . . . . . 19 15 . 3 3 . . . . . . . 151 76 145 34 15 Longest Duration 59 | . . . . . . . . . . . . . . . . 14 11 . 3 3 . . . . . . . 26 40 59 34 8 Martial Activations . | . . . . . . . . . . . . . . . . . . . . . . . . . . . . . . . . . Shielding Activations . | . . . . . . . . . . . . . . . . . . . . . . . . . . . . . . . . . Robots Disrupted 1 | . . . . . . . . . . . . . . . . . . . . . . . . . . . . 1 . . . . Combat Hostiles 1 | . . . . . . . . . . . . . . . . . . . . . . . . . . . . 1 . . . . Robots Corrupted 5 | . . . . . . . 1 . . . . . . . . . 1 . . . . . . . . 3 . . . . . . Combat Hostiles 4 | . . . . . . . 1 . . . . . . . . . . . . . . . . . . 3 . . . . . . Parts Fried 16 | . 2 2 . . . . 2 . . . . . . . . . 3 . . 1 . . . . . 3 . 3 . . . . Impact Corruptions 1 | . . . . . . . . . . . . . . . . . 1 . . . . . . . . . . . . . . . Robots Melted 8 | . . . . . . . . . . . . . . . . . . . 4 . . . . . . . . 3 1 . . . Combat Hostiles 8 | . . . . . . . . . . . . . . . . . . . 4 . . . . . . . . 3 1 . . . Parts Melted 76 | . 1 . . . . . . 1 . . . . . . . . . . 12 8 . . . . . 7 12 20 13 . 2 . Heat Transferred 29525 | . 350 200 . . . . 50 . 777 . . . . . 625 . . 325 4825 2137 . . . . . 1359 3145 9472 4744 750 444 322 Parts Sabotaged . | . . . . . . . . . . . . . . . . . . . . . . . . . . . . . . . . . Parts Stolen . | . . . . . . . . . . . . . . . . . . . . . . . . . . . . . . . . . Parts Stripped . | . . . . . . . . . . . . . . . . . . . . . . . . . . . . . . . . . Power Chain Reactions 8 | . 5 2 . . . . 1 . . . . . . . . . . . . . . . . . . . . . . . . . Latent Energy Used 105 | . . . . . . . . . . . . 105 . . . . . . . . . . . . . . . . . . . . LE Corruption 2 | . . . . . . . . . . . . 2 . . . . . . . . . . . . . . . . . . . . Alert | -11 -10 -10 -9 -9 -9 -8 -8 -8 -8 -8 -8 -8 -7 -7 -6 -6 -5 -5 -4 -4 -4 -4 -4 -4 -3 -3 -2 -2 -2 -2 -1 -1 ------- Run | Yrd Mat Min Mat Min Exi Min Mat Gar Mat Gar Mat Gar Fac Gar Fac Gar Fac Gar Fac Ext Cet Arc Hub Gar Res Tes Res Qua Sec Gar Acc Com Maximum Alert Level 5 | . 1 . 2 1 . . 1 4 3 3 2 3 2 4 3 3 2 5 4 3 2 1 2 3 2 1 . 1 3 5 4 2 Low Security (%) 31 | 100 86 100 60 90 . 100 84 13 43 10 . . . . . . . . . 32 . 71 33 . . 64 100 33 6 . . 5 Level 1 17 | . 13 . 14 9 . . 15 18 16 6 . 25 55 15 4 17 37 10 . 22 . 28 34 3 . 35 . 66 12 . . 71 Level 2 23 | . . . 25 . . . . 21 39 40 100 29 44 20 93 37 62 9 . 30 100 . 31 28 100 . . . 72 . 14 23 Level 3 19 | . . . . . . . . 42 1 42 . 44 . 40 2 44 . 31 92 13 . . . 68 . . . . 9 18 76 . Level 4 4 | . . . . . . . . 4 . . . . . 23 . . . 25 7 . . . . . . . . . . 26 8 . Level 5 3 | . . . . . . . . . . . . . . . . . . 23 . . . . . . . . . . . 54 . . High Security . | . . . . . . . . . . . . . . . . . . . . . . . . . . . . . . . . . Max Security . | . . . . . . . . . . . . . . . . . . . . . . . . . . . . . . . . . Peak Influence 2214 | 10 256 96 453 272 . 105 274 1129 708 972 473 974 544 1397 732 958 510 1902 1155 993 606 334 544 1077 607 277 155 384 940 2214 1199 586 Initial 1199 | . . 90 . 170 . . . 65 549 94 473 280 511 218 732 217 502 230 998 555 546 172 . 348 605 245 155 59 214 702 1199 584 Average 495 | 1 92 24 186 55 . 12 119 635 337 577 454 662 403 803 568 623 417 1166 939 373 521 107 257 827 513 139 67 256 481 1561 864 379 Influence Increases 23955 | 30 623 215 1019 259 . 220 832 1104 633 928 9 824 171 1269 388 801 393 1752 1043 1473 282 273 802 829 481 1111 400 1093 1712 1632 919 435 Destroy 0b10 Robot/C 11557 | . 380 160 520 200 . 160 460 605 390 495 . 525 90 585 180 420 240 516 426 675 120 60 195 330 255 600 240 525 765 660 564 216 Destroy 0b10 Robot/NC 629 | 30 40 . 80 . . 5 90 . 40 . 4 . . 28 12 8 8 12 44 24 . 36 16 . . 48 16 4 32 28 15 9 Destroy Leader 1887 | . 68 30 180 30 . 30 150 30 122 40 2 24 32 16 48 40 63 35 95 50 . . 50 8 48 78 58 162 180 62 108 48 Allied During Kill 1852 | . . . . 17 . 10 . 27 . 1 3 88 18 18 . 37 18 238 64 507 118 93 243 118 56 27 . 6 100 45 . . Trap Triggered on 0b10 10 | . . . 10 . . . . . . . . . . . . . . . . . . . . . . . . . . . . . Successful Hack 737 | . 15 . 58 . . . 44 10 11 11 . . 18 . 15 25 . . 42 5 . . 24 16 56 36 48 153 79 11 43 17 Select Force Hacks 120 | . 60 . 60 . . . . . . . . . . . . . . . . . . . . . . . . . . . . . Disable Machine 1172 | . 30 . 45 . . . 15 . 24 12 . . 12 12 72 . . 60 80 120 12 60 84 48 12 144 12 96 120 48 45 9 Anti-Garrison Action 2351 | . . . . . . . . 325 . 263 . 75 . 488 . 150 . 395 . . . . . 151 . . . . . 504 . . Destroy Structure 2953 | . 30 10 6 12 . 15 43 77 46 94 . 64 1 110 25 73 64 476 282 68 32 24 190 146 54 94 26 87 364 250 108 82 Partial Spotted 69 | . . . . . . . . . . . . . . . . . . . . . . . . . . . . . 60 . . 9 Lose Combat Pursuer 618 | . . 15 60 . . . 30 30 . 12 . 48 . 12 36 48 . 20 10 24 . . . 12 . 84 . 60 12 24 36 45 Influence Decreases 23838 | 30 392 446 581 680 17 220 731 76 1616 102 549 282 833 184 1475 153 1022 179 1810 1631 827 705 304 250 1121 1271 571 817 1158 569 2004 1232 Entered New Map 8305 | . . 141 . 268 17 . . 36 580 52 499 152 463 94 665 93 456 99 904 580 431 260 . 150 472 192 122 47 168 234 800 330 Time Decay 10177 | 30 382 285 574 392 . 180 581 . 556 . 50 . 180 . 350 . 326 . 556 631 326 445 164 . 589 640 374 690 690 . 664 522 Lost Part 873 | . 10 20 . . . . . . 20 20 . 20 . 10 10 30 10 40 30 50 10 . . . . 189 24 70 40 . 50 220 Lost Ally 1651 | . . . . 20 . 40 . 40 10 30 . 110 40 80 . 30 80 40 170 220 60 . 140 100 60 100 51 10 110 60 40 10 Purge Threat 2832 | . . . 7 . . . 150 . 450 . . . 150 . 450 . 150 . 150 150 . . . . . 150 . . 150 275 450 150 Squads Dispatched 118 | . 3 . 5 1 . . 5 . 5 . . . 2 . 4 . 8 . 9 5 . . 3 . 5 9 3 8 27 . 11 5 Investigation 22 | . 3 . 2 1 . . 1 . . . . . . . 1 . 2 . 2 1 . . . . 3 2 . 2 . . 2 . Extermination 32 | . . . . . . . . . . . . . 1 . 1 . 1 . 2 . . . 1 . . 5 2 4 7 . 5 3 Reinforcement 35 | . . . 1 . . . . . 4 . . . 1 . . . 1 . 4 3 . . 2 . 2 2 1 2 9 . 1 2 Assault 12 | . . . 2 . . . . . 1 . . . . . 2 . . . 1 1 . . . . . . . . 2 . 3 . Garrison 17 | . . . . . . . 4 . . . . . . . . . 4 . . . . . . . . . . . 9 . . . Intercept . | . . . . . . . . . . . . . . . . . . . . . . . . . . . . . . . . . Searches Triggered . | . . . . . . . . . . . . . . . . . . . . . . . . . . . . . . . . . Unchained Authorized 3 | . . . . . . . . . . . . . . . . . . . . 1 . . 1 . . 1 . . . . . . Construction Impeded 4 | . . . . . . . . . 1 . . . . . . . . . . . . . 1 . . 1 . . 1 . . . Haulers Reinforced 3 | . . . . . . . . . . . . . . . . . . . . . . . . . 1 . . . 2 . . . Active Scanning Responses . | . . . . . . . . . . . . . . . . . . . . . . . . . . . . . . . . . Cargo Convoy Interrupts . | . . . . . . . . . . . . . . . . . . . . . . . . . . . . . . . . . Alert ID Control Effect 53 | . . . . . . . . . . . . . . . . . . . . 1 . . 1 5 . 4 . 1 41 . . . Stealth | -11 -10 -10 -9 -9 -9 -8 -8 -8 -8 -8 -8 -8 -7 -7 -6 -6 -5 -5 -4 -4 -4 -4 -4 -4 -3 -3 -2 -2 -2 -2 -1 -1 --------- Run | Yrd Mat Min Mat Min Exi Min Mat Gar Mat Gar Mat Gar Fac Gar Fac Gar Fac Gar Fac Ext Cet Arc Hub Gar Res Tes Res Qua Sec Gar Acc Com Distress Signals 48 | . 2 . 1 . . . 6 . 2 . 1 . . . . . . . 4 2 1 . 5 . 5 4 1 2 12 . . . Communications Jammed 188 | . . . . . . . . . . . . . . . . . . . . . . . . . . . . . 157 . 26 5 Distress Signals 177 | . . . . . . . . . . . . . . . . . . . . . . . . . . . . . 148 . 24 5 Times Spotted 1014 | . 22 11 37 14 . 8 40 20 33 36 1 33 6 39 18 32 23 40 60 57 13 14 16 29 24 67 26 54 97 37 59 48 Peak Tracking Total 15 | . 4 4 4 7 . 4 4 4 6 5 2 6 3 5 5 6 6 6 7 9 5 2 4 11 5 9 6 7 6 5 7 15 Tactical Retreats 38 | . 1 1 4 1 . . 1 2 . 1 . 2 . 1 1 2 . 1 1 1 . . . 1 . 5 . 2 1 2 3 4 Traps | -11 -10 -10 -9 -9 -9 -8 -8 -8 -8 -8 -8 -8 -7 -7 -6 -6 -5 -5 -4 -4 -4 -4 -4 -4 -3 -3 -2 -2 -2 -2 -1 -1 ------- Run | Yrd Mat Min Mat Min Exi Min Mat Gar Mat Gar Mat Gar Fac Gar Fac Gar Fac Gar Fac Ext Cet Arc Hub Gar Res Tes Res Qua Sec Gar Acc Com Traps Triggered 41 | . 1 . . . . . 1 9 . 2 . 7 . 7 . . 1 . 1 . . . . 2 . 2 . 1 . . 5 2 Indirectly . | . . . . . . . . . . . . . . . . . . . . . . . . . . . . . . . . . Trap Hack Attempts 2 | . . . 2 . . . . . . . . . . . . . . . . . . . . . . . . . . . . . Triggered . | . . . . . . . . . . . . . . . . . . . . . . . . . . . . . . . . . Disarmed . | . . . . . . . . . . . . . . . . . . . . . . . . . . . . . . . . . Reprogrammed 2 | . . . 1 . . . 1 . . . . . . . . . . . . . . . . . . . . . . . . . Reused 1 | . . . 1 . . . . . . . . . . . . . . . . . . . . . . . . . . . . . Traps Extracted . | . . . . . . . . . . . . . . . . . . . . . . . . . . . . . . . . . Installed . | . . . . . . . . . . . . . . . . . . . . . . . . . . . . . . . . . Triggered 1 | . . . 1 . . . . . . . . . . . . . . . . . . . . . . . . . . . . . Machines | -11 -10 -10 -9 -9 -9 -8 -8 -8 -8 -8 -8 -8 -7 -7 -6 -6 -5 -5 -4 -4 -4 -4 -4 -4 -3 -3 -2 -2 -2 -2 -1 -1 ---------- Run | Yrd Mat Min Mat Min Exi Min Mat Gar Mat Gar Mat Gar Fac Gar Fac Gar Fac Gar Fac Ext Cet Arc Hub Gar Res Tes Res Qua Sec Gar Acc Com Machines Disabled 125 | . 2 . 3 . . . 1 2 2 3 . 1 1 1 6 2 . 11 8 12 1 5 7 7 1 14 2 8 12 7 5 1 Max in Single Turn 4 | . 1 . 1 . . . 1 1 1 1 . 1 . 1 4 1 . 2 2 1 1 3 . 2 1 1 1 1 1 1 1 1 Garrison Access 3 | . . . . . . . . . . . . . . . . . . . . . . . . . . . . . . . 3 . Garrison Relay 11 | . . . . . . . . 2 . . . . . . . . . 4 . . . . . 2 . . . . . 3 . . Network Hub 1 | . . . . . . . . . . . . . . . . . . . . . . . 1 . . . . . . . . . Machines Repaired . | . . . . . . . . . . . . . . . . . . . . . . . . . . . . . . . . . Machines Dismantled 17 | . . . . . . . . . . 1 . . . . . . . 1 . 6 1 . . . . 7 . . . . 1 . Machines Sabotaged . | . . . . . . . . . . . . . . . . . . . . . . . . . . . . . . . . . Overloaded Fab Kills . | . . . . . . . . . . . . . . . . . . . . . . . . . . . . . . . . . Hacking | -11 -10 -10 -9 -9 -9 -8 -8 -8 -8 -8 -8 -8 -7 -7 -6 -6 -5 -5 -4 -4 -4 -4 -4 -4 -3 -3 -2 -2 -2 -2 -1 -1 --------- Run | Yrd Mat Min Mat Min Exi Min Mat Gar Mat Gar Mat Gar Fac Gar Fac Gar Fac Gar Fac Ext Cet Arc Hub Gar Res Tes Res Qua Sec Gar Acc Com Machines Accessed 168 | . 10 . 17 1 2 . 13 2 12 4 1 2 3 2 8 2 6 3 7 6 . . 3 3 4 10 3 12 12 1 15 4 Terminals 110 | . 7 . 11 . . . 11 2 8 4 . 2 1 2 5 2 1 3 3 6 . . 2 3 . 6 2 8 8 1 8 4 Fabricators 8 | . . . . . . . . . . . . . 1 . . . 2 . 2 . . . . . 1 1 . . . . 1 . Repair Stations 17 | . 1 . 2 . . . 1 . 1 . . . . . 2 . 1 . 2 . . . . . 2 1 . 1 2 . 1 . Recycling Units 5 | . 2 . 2 . . . . . . . . . . . . . . . . . . . . . . . . . . . 1 . Scanalyzers 13 | . . . 2 . . . . . 2 . . . . . . . 1 . . . . . . . 1 2 1 2 1 . 1 . Garrison Access 12 | . . . . . . . 1 . 1 . 1 . 1 . 1 . 1 . . . . . 1 . . . . 1 1 . 3 . Total Hacks 513 | . 37 . 53 1 2 . 38 5 32 11 1 4 8 4 13 7 13 7 19 13 . . 16 10 11 29 8 70 37 4 49 11 Successful 246 | . 23 . 34 1 2 . 25 2 24 1 1 1 5 1 8 2 6 . 8 2 . . 10 3 9 7 4 34 18 1 11 3 Failed 265 | . 13 . 18 . . . 13 3 8 10 . 3 3 3 5 5 7 7 11 11 . . 6 7 2 22 4 36 19 3 38 8 Catastrophic 49 | . 2 . . . . . . . . 1 . 2 . 1 2 1 1 3 1 . . . . 1 . 12 . 2 4 1 13 2 Database Lockouts 2 | . 1 . 1 . . . . . . . . . . . . . . . . . . . . . . . . . . . . . Manual 242 | . 21 . 30 . 1 . 24 . 18 2 . 1 3 . 4 4 5 . 8 3 1 . 15 6 2 9 . 44 22 2 10 7 Terminals 352 | . 28 . 36 . . . 29 5 25 11 . 4 3 4 9 7 1 7 7 13 . . 11 10 . 15 6 54 23 4 29 11 Fabricators 24 | . . . . . . . . . . . . . 2 . . . 4 . 8 . . . . . 3 2 . . . . 5 . Repair Stations 61 | . 7 . 9 . . . 5 . 2 . . . . . 3 . 5 . 4 . . . . . 6 5 . 4 6 . 5 . Recycling Units 9 | . 2 . 3 . . . . . . . . . . . . . . . . . . . . . . . . . . . 4 . Scanalyzers 37 | . . . 5 . . . . . 4 . . . . . . . 1 . . . . . . . 2 7 2 8 5 . 3 . Garrison Access 27 | . . . . . . . 4 . 1 . 1 . 3 . 1 . 2 . . . . . 5 . . . . 4 3 . 3 . Terminal Hacks 84 | . 8 . 8 1 2 . 8 2 8 1 . 1 2 1 3 2 . . 1 2 . . 1 3 . 3 3 12 4 1 6 1 Record 3 | . . . . . 1 . . . . . . . . . . . . . . 1 . . . . . . . . . . . 1 Part Schematic 4 | . 1 . 1 . . . . . . . . . 2 . . . . . . . . . . . . . . . . . . . Robot Schematic 1 | . 1 . . . . . . . . . . . . . . . . . . . . . . . . . . . . . . . Prototype ID Bank 7 | . 1 . 1 . . . 1 . 2 . . . . . . . . . . . . . . . . . . 2 . . . . Open Door 10 | . . . . 1 . . . 1 . . . . . 1 . . . . . 1 . . . 1 . 1 . . 1 . 3 . Level Access Points 2 | . . . . . . . . . . . . . . . . . . . . . . . . . . . 1 1 . . . . Branch Access Points 3 | . 1 . . . . . . . . . . . . . . . . . . . . . . . . . 1 . . . 1 . Emergency Access Points 2 | . . . . . . . . 1 . . . . . . . . . . . . . . . . . . . . . 1 . . Machine Index 2 | . . . . . . . . . . . . . . . . . . . . . . . . . . . 1 1 . . . . Terminal Index 6 | . . . 1 . . . 1 . . . . . . . . . . . 1 . . . 1 . . . . 1 1 . . . Unreport Threat 11 | . . . 1 . . . 1 . 3 . . . . . 2 . . . . . . . . . . 1 . . 1 . 2 . Locate Traps 10 | . 3 . 1 . . . 2 . 1 . . . . . . . . . . . . . . . . 1 . 2 . . . . Reprogram Traps 1 | . . . . . . . 1 . . . . . . . . . . . . . . . . . . . . . . . . . Maintenance Status 1 | . . . . . . . . . . . . . . . . . . . . . . . . . . . . 1 . . . . Transport Status 1 | . . . 1 . . . . . . . . . . . . . . . . . . . . . . . . . . . . . Hauler Manifests 5 | . . . 1 . . . 1 . 1 . . . . . . . . . . . . . . . . . . 1 1 . . . Registered Components 1 | . . . . . . . . . . . . . . . . . . . . . . . . . . . . 1 . . . . Registered Prototypes 1 | . . . . . . . . . . . . . . . . . . . . . . . . . . . . 1 . . . . Zone Layout 6 | . 1 . 1 . . . 1 . 1 . . . . . 1 . . . . . . . . . . . . 1 . . . . Garrison Registry 2 | . . . . . . . . . . . . . . . . 1 . . . . . . . 1 . . . . . . . . Patrol Navigation 2 | . . . . . . . . . . . . 1 . . . . . . . . . . . 1 . . . . . . . . Security Stations 2 | . . . . . . . . . . 1 . . . . . 1 . . . . . . . . . . . . . . . . Proto ID Catalog 1 | . . . . . 1 . . . . . . . . . . . . . . . . . . . . . . . . . . . Fabricator Hacks 6 | . . . . . . . . . . . . . 1 . . . 1 . 3 . . . . . 1 . . . . . . . Network Status 4 | . . . . . . . . . . . . . 1 . . . 1 . 1 . . . . . 1 . . . . . . . Load Schematic 1 | . . . . . . . . . . . . . . . . . . . 1 . . . . . . . . . . . . . Build 1 | . . . . . . . . . . . . . . . . . . . 1 . . . . . . . . . . . . . Repair Station Hacks 33 | . 6 . 8 . . . 3 . 2 . . . . . . . 2 . 2 . . . . . 4 1 . 1 4 . . . Scan Component 18 | . 3 . 4 . . . 2 . 1 . . . . . . . 1 . 1 . . . . . 2 1 . 1 2 . . . Repair 15 | . 3 . 4 . . . 1 . 1 . . . . . . . 1 . 1 . . . . . 2 . . . 2 . . . Recycling Unit Hacks . | . . . . . . . . . . . . . . . . . . . . . . . . . . . . . . . . . Scanalyzer 18 | . . . 4 . . . . . 2 . . . . . . . 1 . . . . . . . 2 . 1 7 . . 1 . Insert Component 5 | . . . 1 . . . . . . . . . . . . . . . . . . . . . . . . 4 . . . . Analyze 3 | . . . 2 . . . . . . . . . . . . . . . . . . . . . . . . 1 . . . . Retrieve Study 10 | . . . 1 . . . . . 2 . . . . . . . 1 . . . . . . . 2 . 1 2 . . 1 . Garrison Access Hacks 12 | . . . . . . . 1 . 1 . 1 . 1 . 1 . 1 . . . . . 1 . . . . 1 1 . 3 . Unlock Access 9 | . . . . . . . 1 . 1 . 1 . 1 . 1 . 1 . . . . . 1 . . . . 1 1 . . . Seal Access 3 | . . . . . . . . . . . . . . . . . . . . . . . . . . . . . . . 3 . Unauthorized Hacks 93 | . 9 . 14 . . . 13 . 11 . . . 1 . 4 . 1 . 2 . . . 8 . 2 3 . 13 9 . 1 2 Terminals 71 | . 7 . 12 . . . 13 . 11 . . . . . 1 . . . . . . . 6 . . 2 . 11 6 . . 2 Assimilate 14 | . . . . . . . 5 . 3 . . . . . . . . . . . . . 2 . . . . 3 . . . 1 Botnet 11 | . 1 . 1 . . . 2 . 1 . . . . . 1 . . . . . . . 1 . . . . 1 2 . . 1 Disrupt 1 | . . . . . . . . . . . . . . . . . . . . . . . . . . 1 . . . . . . Operators 6 | . 1 . 1 . . . . . . . . . . . . . . . . . . . 1 . . . . 1 2 . . . Skim 39 | . 5 . 10 . . . 6 . 7 . . . . . . . . . . . . . 2 . . 1 . 6 2 . . . Fabricators 3 | . . . . . . . . . . . . . . . . . 1 . 1 . . . . . 1 . . . . . . . Haulers 3 | . . . . . . . . . . . . . . . . . 1 . 1 . . . . . 1 . . . . . . . Repair Stations 7 | . . . . . . . . . . . . . . . 3 . . . 1 . . . . . 1 1 . . 1 . . . Mechanics 6 | . . . . . . . . . . . . . . . 2 . . . 1 . . . . . 1 1 . . 1 . . . Patch 1 | . . . . . . . . . . . . . . . 1 . . . . . . . . . . . . . . . . . Recycling Units 5 | . 2 . 2 . . . . . . . . . . . . . . . . . . . . . . . . . . . 1 . Recyclers 1 | . . . . . . . . . . . . . . . . . . . . . . . . . . . . . . . 1 . Tunnel 4 | . 2 . 2 . . . . . . . . . . . . . . . . . . . . . . . . . . . . . Scanalyzers 1 | . . . . . . . . . . . . . . . . . . . . . . . . . . . . . 1 . . . Researchers 1 | . . . . . . . . . . . . . . . . . . . . . . . . . . . . . 1 . . . Garrison Access 6 | . . . . . . . . . . . . . 1 . . . . . . . . . 2 . . . . 2 1 . . . Decoy 1 | . . . . . . . . . . . . . . . . . . . . . . . 1 . . . . . . . . . Reprogram 1 | . . . . . . . . . . . . . 1 . . . . . . . . . . . . . . . . . . . Intercept 3 | . . . . . . . . . . . . . . . . . . . . . . . 1 . . . . 1 1 . . . Watchers 1 | . . . . . . . . . . . . . . . . . . . . . . . . . . . . 1 . . . . Data Cores Recovered 2 | . . . . . . . . . . . . . . . . . . . 1 . . . . . . 1 . . . . . . Used . | . . . . . . . . . . . . . . . . . . . . . . . . . . . . . . . . . Hacking Detections 142 | . 8 . 16 . . . 11 2 11 4 . 2 3 2 6 2 5 3 6 6 1 . 3 2 2 9 3 11 10 1 10 3 Full Trace Events 11 | . . . . . . . . 1 . 1 . . . 1 . . . 1 2 1 . . . . . . . 2 . . 2 . Feedback Events 3 | . . . . . . . . 1 . . . . . 1 . . . . . 1 . . . . . . . . . . . . Corruption 3 | . . . . . . . . 1 . . . . . 1 . . . . . 1 . . . . . . . . . . . . Feedback Blocked . | . . . . . . . . . . . . . . . . . . . . . . . . . . . . . . . . . Robot Schematics Acquired 55 | . 1 . . . . . . . . . . . . . . . . . . 53 . . . . . 1 . . . . . . Robots Built . | . . . . . . . . . . . . . . . . . . . . . . . . . . . . . . . . . Authchips . | . . . . . . . . . . . . . . . . . . . . . . . . . . . . . . . . . Time 81 | . . . . . . . . . . . . . . . . . . . 81 . . . . . . . . . . . . . Total Robot Build Rating . | . . . . . . . . . . . . . . . . . . . . . . . . . . . . . . . . . Part Schematics Acquired 20 | . 1 . 2 . . . . . . . . . 2 . . . . . . . . . . . . 9 . 1 5 . . . Parts Built . | . . . . . . . . . . . . . . . . . . . . . . . . . . . . . . . . . Authchips . | . . . . . . . . . . . . . . . . . . . . . . . . . . . . . . . . . Time . | . . . . . . . . . . . . . . . . . . . . . . . . . . . . . . . . . Total Part Build Rating . | . . . . . . . . . . . . . . . . . . . . . . . . . . . . . . . . . Part Studies Acquired 10 | . . . 1 . . . . . 2 . . . . . . . 1 . . . . . . . 2 . 1 2 . . 1 . Parts Repaired 15 | . 3 . 4 . . . 1 . 1 . . . . . . . 1 . 1 . . . . . 2 . . . 2 . . . Time 588 | . 78 . 160 . . . 64 . 51 . . . . . . . 25 . 31 . . . . . 132 . . . 47 . . . Parts Recycled . | . . . . . . . . . . . . . . . . . . . . . . . . . . . . . . . . . Recycled Matter . | . . . . . . . . . . . . . . . . . . . . . . . . . . . . . . . . . Retrieved Matter . | . . . . . . . . . . . . . . . . . . . . . . . . . . . . . . . . . Retrieved Components . | . . . . . . . . . . . . . . . . . . . . . . . . . . . . . . . . . Parts Scanalyzed 2 | . . . 1 . . . . . . . . . . . . . . . . . . . . . . . . 1 . . . . Part Schematics Acquired 2 | . . . 1 . . . . . . . . . . . . . . . . . . . . . . . . 1 . . . . Parts Damaged 1 | . . . . . . . . . . . . . . . . . . . . . . . . . . . . 1 . . . . Bothacking | -11 -10 -10 -9 -9 -9 -8 -8 -8 -8 -8 -8 -8 -7 -7 -6 -6 -5 -5 -4 -4 -4 -4 -4 -4 -3 -3 -2 -2 -2 -2 -1 -1 ------------ Run | Yrd Mat Min Mat Min Exi Min Mat Gar Mat Gar Mat Gar Fac Gar Fac Gar Fac Gar Fac Ext Cet Arc Hub Gar Res Tes Res Qua Sec Gar Acc Com Used RIF Installer 9 | . . . . . . . . 2 . 1 . 1 . 1 . 1 . 1 . . . . . 1 . . . . . 1 . . Coupler Efficiency 1 | . . . . . . . . . . . . . . . . . . 1 . . . . . . . . . . . . . . Hotswap 1 | . . . . . . . . . . . . . . . . 1 . . . . . . . . . . . . . . . . Threat Obfuscator 2 | . . . . . . . . 1 . . . . . . . . . . . . . . . . . . . . . 1 . . Watcher Feeds 1 | . . . . . . . . . . . . . . 1 . . . . . . . . . . . . . . . . . . Patrol Navigation 1 | . . . . . . . . . . 1 . . . . . . . . . . . . . . . . . . . . . . Alert ID Control 1 | . . . . . . . . . . . . 1 . . . . . . . . . . . . . . . . . . . . Autoassimilate 1 | . . . . . . . . . . . . . . . . . . . . . . . . 1 . . . . . . . . Robots Hacked 72 | . . . . . 4 . . . . 2 . . 2 . 2 2 2 . 8 4 . 1 . 5 . 12 9 3 10 2 3 1 Non-combat 33 | . . . . . 3 . . . . 2 . . 2 . 2 2 2 . 4 2 . . . . . 2 5 . 1 2 3 1 Combat 39 | . . . . . 1 . . . . . . . . . . . . . 4 2 . 1 . 5 . 10 4 3 9 . . . Autoassimilated 5 | . . . . . . . . . . . . . . . . . . . . . . . . . . 1 2 . 2 . . . Robot Hacks Applied 84 | . . . . . 4 . . . . 2 . . 3 . 4 2 5 . 9 5 . 1 . 5 . 12 9 4 11 4 3 1 parse_system 12 | . . . . . 4 . . . . . . . . . . . 1 . . . . 1 . . . 2 1 1 2 . . . drop_inventory 5 | . . . . . . . . . . . . . . . . . . . 1 . . . . . . 2 2 . . . . . find_recycling 1 | . . . . . . . . . . . . . . . . . . . . . . . . . . . . . . . 1 . find_station 1 | . . . . . . . . . . . . . . . . . 1 . . . . . . . . . . . . . . . purge_threat 9 | . . . . . . . . . . . . . 1 . 1 . 1 . 1 1 . . . . . . . . . 2 1 1 block_reporting 2 | . . . . . . . . . . . . . . . 1 . . . . . . . . . . . 1 . . . . . disable_scanner 4 | . . . . . . . . . . . . . . . . . . . . . . . . . . 3 . . 1 . . . locate_prototypes 2 | . . . . . . . . . . . . . . . . . . . . . . . . . . . . . 2 . . . find_garrison 1 | . . . . . . . . . . . . . . . . . . . 1 . . . . . . . . . . . . . amplify_resonance 8 | . . . . . . . . . . . . . . . . . . . 1 . . . . 1 . 1 1 2 2 . . . reboot_system 1 | . . . . . . . . . . . . . . . . . . . . . . . . . . 1 . . . . . . overwrite_iff 10 | . . . . . . . . . . . . . . . . . . . 2 1 . . . 2 . 2 1 . 2 . . . formatsys_low 22 | . . . . . . . . . . 2 . . 2 . 2 2 2 . 3 2 . . . . . . 3 . 1 2 1 . formatsys_high 6 | . . . . . . . . . . . . . . . . . . . . 1 . . . 2 . 1 . 1 1 . . . Relay Couplers Released 57 | . . . . . . . . 8 . . . 4 . . . 3 . 19 . . . . . 7 . . . . 4 9 3 . Machine Destruction 40 | . . . . . . . . 8 . . . . . . . . . 16 . . . . . 7 . . . . . 9 . . Programmers 17 | . . . . . . . . . . . . 4 . . . 3 . 3 . . . . . . . . . . 4 . 3 . Attached 19 | . . . . . . . . . . 1 . . 1 . 1 1 1 . 2 . . . . 3 1 3 . 1 2 1 1 . Fabnet Peak Effective % . | . . . . . . . . . . . . . . . . . . . . . . . . . . . . . . . . . Robots Rewired 47 | . . . . . . . . . . 8 . 2 . 3 . 2 . 8 . 15 . . . 3 . 3 . . . 3 . . Allies Hacked 6 | . . . . . . . . . . 1 . 2 . . . . . . . 1 . . . . . . 1 . 1 . . . Hacks Repelled . | . . . . . . . . . . . . . . . . . . . . . . . . . . . . . . . . . Allies | -11 -10 -10 -9 -9 -9 -8 -8 -8 -8 -8 -8 -8 -7 -7 -6 -6 -5 -5 -4 -4 -4 -4 -4 -4 -3 -3 -2 -2 -2 -2 -1 -1 -------- Run | Yrd Mat Min Mat Min Exi Min Mat Gar Mat Gar Mat Gar Fac Gar Fac Gar Fac Gar Fac Ext Cet Arc Hub Gar Res Tes Res Qua Sec Gar Acc Com Total Allies 120 | . . . . 3 . . 3 2 . 10 . 2 2 3 2 6 2 10 5 31 5 . . 7 . 7 5 2 6 5 1 1 Largest Group 16 | . . . . 3 2 2 3 5 3 9 9 9 3 3 2 5 5 7 8 16 14 13 11 4 4 3 2 1 3 2 2 1 Highest-Rated Group 927 | . . . . 40 32 32 30 81 30 198 198 198 80 87 49 146 132 523 439 684 927 768 681 304 161 237 103 344 474 105 81 26 Highest-Rated Ally 344 | . . . . 16 16 16 10 31 10 39 39 39 39 31 26 51 34 116 85 159 159 96 96 96 56 152 58 344 344 69 45 26 Total Orders 175 | . . . . . . . 2 12 22 30 1 14 1 1 1 22 3 13 . . 9 4 . 4 . . 4 . 2 9 21 . STAY 74 | . . . . . . . 1 6 12 14 . 7 . 1 . 9 . 7 . . 6 2 . 2 . . 2 . 1 4 . . ROAM 2 | . . . . . . . . . . 1 . . . . . . 1 . . . . . . . . . . . . . . . FOLLOW 57 | . . . . . . . 1 6 10 10 . 4 . . . 8 . 6 . . 3 2 . 2 . . 2 . . 3 . . AID 22 | . . . . . . . . . . 5 1 3 1 . 1 5 2 . . . . . . . . . . . 1 2 1 . EXPLORE 12 | . . . . . . . . . . . . . . . . . . . . . . . . . . . . . . . 12 . RETURN 8 | . . . . . . . . . . . . . . . . . . . . . . . . . . . . . . . 8 . Ally Attacks 841 | . . . . 15 . 5 . 18 . 2 . 62 17 20 . 21 8 53 70 177 40 15 55 48 15 38 5 6 141 10 . . Total Damage 29403 | . . . . 199 . 30 . 298 . 65 . 998 202 363 . 555 529 2175 2057 4081 1465 989 2150 1968 625 1553 207 471 8188 235 . . Kills 168 | . . . . 5 . . . 4 . 1 . 9 2 2 . 4 2 17 7 23 6 5 18 11 1 8 . 1 41 1 . . Allies Corrupted 4 | . . . . . . . . . . . . 1 . . . . . . . . . . 2 . . . 1 . . . . . Allies Melted . | . . . . . . . . . . . . . . . . . . . . . . . . . . . . . . . . . Intel | -11 -10 -10 -9 -9 -9 -8 -8 -8 -8 -8 -8 -8 -7 -7 -6 -6 -5 -5 -4 -4 -4 -4 -4 -4 -3 -3 -2 -2 -2 -2 -1 -1 ------- Run | Yrd Mat Min Mat Min Exi Min Mat Gar Mat Gar Mat Gar Fac Gar Fac Gar Fac Gar Fac Ext Cet Arc Hub Gar Res Tes Res Qua Sec Gar Acc Com Active Infowar (turns) 24916 | 16 1423 1184 2386 272 . 1 585 . . . . . 367 549 . . . . . . . 1091 464 1459 1413 1427 763 2244 2743 2628 2524 1377 Optics 5 | . . . . . . . . . . . . . . . . . . . . . . . . . 3 . . 2 . . . . Sensors 3108 | . . . . . . . . . . . . . . . . . . . . . . . . . . . . 817 248 . 2006 37 Terrain 307 | . . . . . . . . . . . . . . . . . . . . . . . . . . . . . . . 307 . Seismic 16669 | 16 1423 1184 2386 272 . 1 585 . . . . . 367 549 . . . . . . . 1091 464 1459 1410 1201 763 2019 205 892 382 . Triangulation 5647 | . . . . . . . . . . . . . . . . . . . . . . . . . . 1069 . . 661 337 2203 1377 Cloaking 893 | . . . . . . . . . . . . . . . . . . . . . . . . . . . . . . . . 893 Jamming 8417 | . . . . . . . . . . . . . . . . . . . . . . . . . . . . . 1915 2628 2524 1350 Robot Analysis Total 101 | . . . . . . . . . . . . . . . . . . . . 101 . . . . . . . . . . . . Derelict Logs Recovered 3 | . . 1 . 2 . . . . . . . . . . . . . . . . . . . . . . . . . . . . Drone Launches 13 | . . . . . . . . . . . . . . . . . . . . . . . . . . . . . . . 13 . Drone Recoveries 11 | . . . . . . . . . . . . . . . . . . . . . . . . . . . . . . . 11 . Exploration | -11 -10 -10 -9 -9 -9 -8 -8 -8 -8 -8 -8 -8 -7 -7 -6 -6 -5 -5 -4 -4 -4 -4 -4 -4 -3 -3 -2 -2 -2 -2 -1 -1 ------------- Run | Yrd Mat Min Mat Min Exi Min Mat Gar Mat Gar Mat Gar Fac Gar Fac Gar Fac Gar Fac Ext Cet Arc Hub Gar Res Tes Res Qua Sec Gar Acc Com Turns Passed 56133 | 110 1983 1184 3928 1612 799 1310 2404 1877 1622 2155 117 1778 369 2572 780 1860 728 2351 1635 2217 723 1577 464 1689 1849 2339 937 3707 2794 2689 2524 1450 Spaces Moved 25445 | 29 948 566 1483 745 385 622 960 762 687 867 56 707 152 1137 383 922 358 1197 794 1055 327 409 274 772 823 1145 600 1882 1203 1238 1209 748 Core 119 | . . . . . . . . . . . . . . . . . . . . . . . . . . . . . . . . 119 Treads 23173 | 29 948 566 1483 745 385 622 960 762 687 867 56 707 152 1137 383 922 358 1197 794 1055 327 409 274 772 823 278 . 1196 1203 1238 1209 629 Legs 2152 | . . . . . . . . . . . . . . . . . . . . . . . . . . 867 599 686 . . . . Wheels 1 | . . . . . . . . . . . . . . . . . . . . . . . . . . . 1 . . . . . Hover . | . . . . . . . . . . . . . . . . . . . . . . . . . . . . . . . . . Flight . | . . . . . . . . . . . . . . . . . . . . . . . . . . . . . . . . . Fastest Speed 50 | 160 160 160 160 200 200 200 200 200 200 200 200 200 200 160 160 160 160 160 160 160 160 160 160 160 160 105 105 120 158 155 155 50 Average Speed 170 | 160 160 199 185 200 200 200 200 204 200 201 200 205 200 179 160 160 160 160 160 160 180 174 160 185 160 127 113 159 164 155 159 140 Slowest Speed 253 | 160 240 240 200 200 200 200 240 240 200 240 200 240 200 240 160 160 160 160 240 240 240 240 160 240 240 253 175 250 170 158 166 158 Overloaded Moves . | . . . . . . . . . . . . . . . . . . . . . . . . . . . . . . . . . Propulsion Burnouts . | . . . . . . . . . . . . . . . . . . . . . . . . . . . . . . . . . Robots Hopped 2 | . . . . . . . . . . . . 2 . . . . . . . . . . . . . . . . . . . . Potential Cave-ins 3 | . . . . . . . . . . . . . . . . . . . . . . . . . . . . . 3 . . . Cave-ins Triggered . | . . . . . . . . . . . . . . . . . . . . . . . . . . . . . . . . . Teleports 1 | . . . . . . . . . . . . . . . . . . . . . . . . . . . . . 1 . . . Exploration Rate (%) 65 | 3 99 97 98 99 70 98 76 79 75 89 10 87 4 95 15 89 9 97 25 97 71 99 38 67 25 97 23 93 61 96 52 35 Regions Visited 32 Branch Regions 12 Pre-discovered Areas 17 | . 3 . 6 1 1 . 3 . 2 . . . . . . . . . . . . . . . . . . 1 . . . . Known Exits Taken 16 | . 1 . 1 . 1 1 1 . 1 . 1 . 1 . 1 . 1 . . . . . 1 . 1 . 1 1 1 . 1 . Unknown Exits Taken 8 | 1 . 1 . 1 . . . . . . . . . . . . . . 1 1 1 1 . . . 1 . . . . . . Scrap Searched 6 | . . 3 . 1 . 2 . . . . . . . . . . . . . . . . . . . . . . . . . . Spaces Dug 290 | . 5 . 1 . . . 1 2 . 5 . 8 . 55 3 5 . 34 6 1 . . . 23 2 31 4 12 8 30 17 37 Terrain Destroyed 1132 | . 28 10 1 24 . 22 42 16 64 68 . 16 . 82 29 14 6 122 65 36 12 14 3 53 26 48 6 28 70 94 78 55 Melee 169 | . . . 1 . . . 1 . . 5 . 8 . 35 2 4 . 33 6 . . . . 18 1 7 1 5 1 29 6 6 Projectile 340 | . 8 . . . . . 1 2 . . . . . 1 5 1 5 4 6 36 12 14 3 4 25 39 4 23 42 21 35 49 AOE 608 | . 20 10 . 24 . 22 40 14 64 63 . 8 . 46 21 8 . 85 53 . . . . 31 . . . . 25 39 35 . Terrain Rammed . | . . . . . . . . . . . . . . . . . . . . . . . . . . . . . . . . . Walls Destroyed . | . . . . . . . . . . . . . . . . . . . . . . . . . . . . . . . . . Machines Disabled . | . . . . . . . . . . . . . . . . . . . . . . . . . . . . . . . . . Actions | -11 -10 -10 -9 -9 -9 -8 -8 -8 -8 -8 -8 -8 -7 -7 -6 -6 -5 -5 -4 -4 -4 -4 -4 -4 -3 -3 -2 -2 -2 -2 -1 -1 --------- Run | Yrd Mat Min Mat Min Exi Min Mat Gar Mat Gar Mat Gar Fac Gar Fac Gar Fac Gar Fac Ext Cet Arc Hub Gar Res Tes Res Qua Sec Gar Acc Com Total 34003 | 63 1284 603 2438 837 413 658 1309 949 840 1122 60 911 197 1483 500 1193 464 1492 1001 1369 420 1228 290 939 1307 1653 786 2343 1664 1708 1520 959 Wait 3755 | 12 231 10 731 57 10 8 209 45 60 40 1 42 9 42 37 76 23 86 58 81 7 771 13 24 399 47 53 181 101 178 88 25 Move 25413 | 29 947 565 1482 744 384 621 960 761 687 866 56 702 151 1136 382 921 357 1196 793 1054 326 408 273 771 822 1144 599 1881 1202 1237 1208 748 Hop 2 | . . . . . . . . . . . . 2 . . . . . . . . . . . . . . . . . . . . Pick Up 341 | 1 13 6 27 3 5 1 13 7 4 8 . . 2 11 5 10 8 17 12 14 8 2 . 16 8 39 4 23 48 12 13 1 Fast Attach 227 | 1 6 . 4 . . . 8 . 4 . . 2 . 10 . 1 4 2 6 7 15 10 . 1 18 33 11 28 26 10 9 11 Attach 160 | . 3 2 3 . 1 1 2 . 2 3 . 2 2 6 4 4 6 7 10 5 . 3 . 4 3 22 5 14 21 5 11 9 Detach 91 | . 2 . . . . . . . 1 1 . . . 6 . 1 2 3 4 2 1 5 . 5 3 12 1 10 13 6 7 6 Swap 807 | 2 16 4 49 9 4 9 24 29 16 48 1 45 13 52 19 29 9 35 23 31 14 6 . 33 11 68 23 30 40 57 35 23 Drop 467 | 2 5 4 26 6 5 1 25 13 14 9 1 8 2 21 6 10 10 13 13 20 27 6 . 12 22 58 16 43 25 20 12 12 Fire 2097 | 16 56 7 106 14 . 13 63 74 52 103 1 82 18 121 44 104 44 59 72 103 14 17 4 33 19 158 73 126 178 122 113 88 Melee 384 | . . 3 1 . 4 . 1 2 . 23 . 18 . 64 3 36 . 53 10 1 . . . 34 1 16 1 7 8 60 7 31 Ram 5 | . . . . . . . . . . . . . . . . . . . . . . . . . . . . . . . . 5 Kick 3 | . . . . . . . . . . . . . . . . . . . . . . . . . . 3 . . . . . . Crush 34 | . 5 2 7 4 . 4 4 . . 1 . . . 1 . . 1 . . 1 . . . . 1 . . . 2 . 1 . Escape Stasis 52 | . . . . . . . . 18 . 4 . 8 . 12 . 1 . . . 2 . . . 6 . . . . . 1 . . Rewire 22 | . . . . . . . . . . 8 . . . 1 . . . 13 . . . . . . . . . . . . . . Trap 2 | . . . 2 . . . . . . . . . . . . . . . . . . . . . . . . . . . . . Miscellaneous 141 | . . . . . . . . . . 8 . . . . . . . 8 . 48 8 . . . . 53 . . . . 16 . Route ------- -11/Scrapyard -10/Materials (discovered 5 exits: *Mat x3 / *Min / *Sub) -10/Mines (discovered 3 exits: *Mat x2 / Sub) -9/Materials (discovered 4 exits: *Mat x3 / *Min) -9/Mines (discovered 4 exits: *Mat x2 / *Exi / [*Zio]) -9/Exiles (discovered 2 exits: *Min x2) -8/Mines (discovered 2 exits: *Mat x2) -8/Materials (discovered 4 exits: *Fac x3 / Gar) -8/Garrison (discovered 3 exits: *Mat x3) -8/Materials (discovered 4 exits: *Fac x3 / Gar) -8/Garrison (discovered 4 exits: *Fac x3 / *Mat) -8/Materials -8/Garrison (discovered 3 exits: *Fac x3) -7/Factory (discovered 5 exits: Fac x2 / Sto / Low / Gar) -7/Garrison (discovered 3 exits: *Fac x3) -6/Factory -6/Garrison (discovered 3 exits: *Fac x3) -5/Factory (discovered 2 exits: *Fac / Gar) -5/Garrison (discovered 3 exits: *Fac x3) -4/Factory (discovered 3 exits: *Res / *Upp / *Ext) -4/Extension (discovered 2 exits: *Res / *Cet) -4/Cetus (discovered 2 exits: *Res / [*Arc]) -4/Archives (discovered 3 exits: *Res / *Hub x2) -4/Hub_04(d) (discovered 2 exits: *Res / Gar) -4/Garrison (discovered 3 exits: *Res x3) -3/Research (discovered 2 exits: *Tes x2) -3/Testing -2/Research (discovered 5 exits: Acc x3 / *Qua x2) -2/Quarantine (discovered 4 exits: *Acc / *Sec / Gar / [*Frg]) -2/Section 7 (discovered 2 exits: Acc / Gar) -2/Garrison (discovered 3 exits: *Acc x3) -1/Access (discovered 2 exits: [*Sur] / *Com) -1/Command History --------- Turn | Location | Event 14 | -11/Scrapyard | Discovered new exit (range 2) 111 | -11/Scrapyard | Entered Materials 263 | -10/Materials | Discovered new exit (range 6) 314 | -10/Materials | Build established: Mutant 950 | -10/Materials | Central database locked down 950 | -10/Materials | Discovered new exit (range 15) 950 | -10/Materials | Identified exit to Mines 1019 | -10/Materials | Discovered new exit (range 7) 1052 | -10/Materials | Learned location of Recycling (-7) 1096 | -10/Materials | Learned 2 Storage zone layouts 1111 | -10/Materials | Derelicts attacked the area 1132 | -10/Materials | Learned Storage stockpile data 1157 | -10/Materials | Learned 4 Recycling zone layouts 1183 | -10/Materials | Learned location of 1 exit from Recycling 1256 | -10/Materials | Learned 2 Storage zone layouts 1549 | -10/Materials | Discovered new exit (range 5) 1653 | -10/Materials | Discovered new exit (range 16) 1929 | -10/Materials | Repaired Lgt. Treads? 1975 | -10/Materials | Repaired Lgt. Treads 2003 | -10/Materials | Repaired Lgt. Treads 2094 | -10/Materials | Entered Mines 2095 | -10/Mines | Identified exit to Subcaves 2101 | -10/Mines | Met a Derelict bent on vengeance 2294 | -10/Mines | A weapon hastily lodged in a ceiling crevice suddenly fell to the ground 2330 | -10/Mines | Received a Rocket Launcher from a helpful Derelict 2343 | -10/Mines | Discovered new exit (range 12) 2491 | -10/Mines | Learned Materials terminal intel 3242 | -10/Mines | Discovered new exit (range 15) 3278 | -10/Mines | Entered Materials 3278 | -9/Materials | Evolved 2 slots: Propulsion x1, Utility x1 3279 | -9/Materials | Identified exit to Mines 3280 | -9/Materials | Loaded intel: 12 terminal locations 4118 | -9/Materials | Discovered new exit (range 8) 4496 | -9/Materials | Identified exit to Materials 4582 | -9/Materials | Learned Recycling recycling unit intel 4612 | -9/Materials | Learned Materials terminal intel 4663 | -9/Materials | Learned location of Mines (-8) 4705 | -9/Materials | Learned 2 Storage zone layouts 5543 | -9/Materials | Central database locked down 5701 | -9/Materials | Build established: Scavenger-Mutant 6196 | -9/Materials | Learned location of 1 exit from Recycling 6269 | -9/Materials | Learned Storage security intel 6393 | -9/Materials | Repaired Lgt. Treads+ 6436 | -9/Materials | Learned 2 Storage zone layouts 6445 | -9/Materials | Repaired Hvy. Ion Engine 6562 | -9/Materials | Learned Materials stockpile data 6837 | -9/Materials | Repaired Imp. Assault Rifle 6871 | -9/Materials | Repaired Med. Armor Plating 6878 | -9/Materials | First assault squad dispatched 7206 | -9/Materials | Entered Mines 7235 | -9/Mines | Build established: Mutant 7286 | -9/Mines | Assembled infested the area 7382 | -9/Mines | Discovered exit to Materials (range 15) 7736 | -9/Mines | Assisted by bots powering up and referring to "LRC-V3" 8025 | -9/Mines | Discovered exit to Materials (range 12) 8036 | -9/Mines | A Derelict revealed a hidden shortcut to a safe place 8171 | -9/Mines | Learned location of Zion (-7) 8368 | -9/Mines | Deemed a non-threat by the Exiles lab entrance 8370 | -9/Mines | Discovered new exit (range 5) 8587 | -9/Mines | Met a Derelict shopkeep closing up shop 8818 | -9/Mines | Entered Exiles 8818 | -9/Exiles | Accompanied by 2 allies 8819 | -9/Exiles | Identified exit to Mines 8868 | -9/Exiles | Met 8R-AWN 8901 | -9/Exiles | Met EX-HEX 8993 | -9/Exiles | Met EX-DEC 9100 | -9/Exiles | Met EX-BIN 9174 | -9/Exiles | Build established: Scavenger-Mutant 9230 | -9/Exiles | Aligned with FarCom system 9232 | -9/Exiles | Given EX-Vault access code 9278 | -9/Exiles | Opened EX-Vault 9293 | -9/Exiles | Found Latent Energy Streamer 9379 | -9/Exiles | Found Longsword +1 9390 | -9/Exiles | Found 0b10 Alert Chip 9431 | -9/Exiles | Warned to stay clear of 0b10 Research branches 9593 | -9/Exiles | Discovered exit to Mines (range 12) 9600 | -9/Exiles | Build established: Mutant 9617 | -9/Exiles | Stole three prototypes: 0b10 Alert Chip, Latent Energy Streamer, Longsword +1 9617 | -9/Exiles | Entered Mines 9617 | -8/Mines | Accompanied by 2 allies 9967 | -8/Mines | Discovered exit to Materials (range 10) 10038 | -8/Mines | Core integrity fell below 50% 10145 | -8/Mines | Build established: Scavenger-Mutant 10481 | -8/Mines | Discovered exit to Materials (range 9) 10927 | -8/Mines | Entered Materials 10927 | -8/Materials | Evolved 2 slots: Utility x1, Weapon x1 10928 | -8/Materials | Identified exit to Factory 10930 | -8/Materials | Loaded intel: 12 terminal locations 11405 | -8/Materials | Build established: Scavenger-Tank 11802 | -8/Materials | Identified exit to Garrison 12337 | -8/Materials | Repaired Broken Hvy. Ion Engine 12365 | -8/Materials | Discovered exit to Factory (range 4) 12443 | -8/Materials | Learned Factory machine intel 12481 | -8/Materials | Learned location of Lower Caves (-7) 12511 | -8/Materials | Learned location of 1 exit from Recycling 12541 | -8/Materials | Learned Factory emergency access door positions 12542 | -8/Materials | Learned 4 Factory zone layouts 12553 | -8/Materials | Learned 2 Storage zone layouts 12912 | -8/Materials | Garrison activated, responded to threat 13326 | -8/Materials | Garrison activated, responded to threat 13331 | -8/Materials | Entered Garrison 13331 | -8/Garrison | Accompanied by 3 allies 13424 | -8/Garrison | Triggered checkpoint 13449 | -8/Garrison | Installed Relay Interface Framework 13576 | -8/Garrison | Triggered checkpoint 13603 | -8/Garrison | Triggered checkpoint 13921 | -8/Garrison | Triggered checkpoint 14024 | -8/Garrison | Rescued a captive Derelict 14027 | -8/Garrison | Rescued a captive Derelict 14098 | -8/Garrison | Discovered new exit (range 10) 14151 | -8/Garrison | Garrison Relay disabled 14237 | -8/Garrison | Triggered checkpoint 14367 | -8/Garrison | Triggered checkpoint 14389 | -8/Garrison | Garrison Relay disabled 14479 | -8/Garrison | Discovered new exit (range 8) 14773 | -8/Garrison | Discovered new exit (range 10) 14972 | -8/Garrison | Expanded RIF knowledge: Threat Obfuscation 15208 | -8/Garrison | Entered Materials 15208 | -8/Materials | Accompanied by 3 allies 15608 | -8/Materials | First assault squad dispatched 15630 | -8/Materials | Repaired Imp. Assault Rifle 15822 | -8/Materials | Destroyed 9 combat bots 15896 | -8/Materials | Discovered exit to Factory (range 16) 16311 | -8/Materials | Learned location of 3 exits from Factory 16373 | -8/Materials | Learned Storage trap positions 16375 | -8/Materials | Learned location of 1 exit from Storage 16428 | -8/Materials | Build established: Tank 16828 | -8/Materials | Identified exit to Garrison 16830 | -8/Materials | Entered Garrison 16830 | -8/Garrison | Accompanied by 1 ally 16846 | -8/Garrison | Learned Factory security intel 16905 | -8/Garrison | Triggered checkpoint 17048 | -8/Garrison | Triggered checkpoint 17050 | -8/Garrison | Triggered checkpoint 17136 | -8/Garrison | Triggered checkpoint 17218 | -8/Garrison | Destroyed 11 combat bots 17272 | -8/Garrison | Triggered checkpoint 17536 | -8/Garrison | Discovered exit to Factory (range 9) 17690 | -8/Garrison | Triggered checkpoint 17930 | -8/Garrison | Discovered exit to Factory (range 14) 17966 | -8/Garrison | Discovered new exit (range 5) 18596 | -8/Garrison | Triggered checkpoint 18614 | -8/Garrison | Triggered checkpoint 18665 | -8/Garrison | Expanded RIF knowledge: Patrol Navigation 18985 | -8/Garrison | Entered Materials 18985 | -8/Materials | Accompanied by 9 allies 18997 | -8/Materials | Build established: Commander-Tank 19102 | -8/Materials | Identified exit to Garrison 19102 | -8/Materials | Entered Garrison 19102 | -8/Garrison | Accompanied by 9 allies 19224 | -8/Garrison | Triggered checkpoint 19272 | -8/Garrison | P-60 Hacker assimilated allied 8F-1HR(b) 19310 | -8/Garrison | Lost 5 allies 19506 | -8/Garrison | Triggered checkpoint 19573 | -8/Garrison | Build established: Bothacker-Tank 19573 | -8/Garrison | Triggered checkpoint 19634 | -8/Garrison | Destroyed 7 combat bots 19674 | -8/Garrison | Triggered checkpoint 19913 | -8/Garrison | Expanded RIF knowledge: Alert ID Control 19923 | -8/Garrison | Discovered exit to Factory (range 12) 20172 | -8/Garrison | Discovered exit to Factory (range 11) 20252 | -8/Garrison | Triggered checkpoint 20698 | -8/Garrison | Triggered checkpoint 20840 | -8/Garrison | Discovered exit to Factory (range 10) 20880 | -8/Garrison | Entered Factory 20880 | -7/Factory | Accompanied by 2 allies 20880 | -7/Factory | Evolved 2 slots: Propulsion x1, Utility x1 20881 | -7/Factory | Identified exit to Storage 20882 | -7/Factory | Identified exit to Factory 20882 | -7/Factory | Identified exit to Lower Caves 20882 | -7/Factory | FarCom data flow suspended 20886 | -7/Factory | Loaded intel: 286 machine locations 21090 | -7/Factory | Identified exit to Garrison 21249 | -7/Factory | Entered Garrison 21249 | -7/Garrison | Accompanied by 2 allies 21569 | -7/Garrison | Triggered checkpoint 21575 | -7/Garrison | Triggered checkpoint 21853 | -7/Garrison | Discovered exit to Factory (range 13) 21924 | -7/Garrison | Expanded RIF knowledge: Watcher Feeds 22078 | -7/Garrison | Triggered checkpoint 22476 | -7/Garrison | Discovered exit to Factory (range 10) 22512 | -7/Garrison | Triggered checkpoint 23107 | -7/Garrison | Discovered exit to Factory (range 8) 23125 | -7/Garrison | Triggered checkpoint 23291 | -7/Garrison | Build established: Tank 23481 | -7/Garrison | Triggered checkpoint 23677 | -7/Garrison | Build established: Bothacker-Tank 23685 | -7/Garrison | Triggered checkpoint 23821 | -7/Garrison | Entered Factory 23821 | -6/Factory | Evolved 2 slots: Utility x1, Weapon x1 24171 | -6/Factory | First assault squad dispatched 24586 | -6/Factory | Identified exit to Garrison 24601 | -6/Factory | Entered Garrison 24601 | -6/Garrison | Accompanied by 2 allies 24657 | -6/Garrison | Triggered checkpoint 24866 | -6/Garrison | Triggered checkpoint 24872 | -6/Garrison | Spotted B-75 Beast 24903 | -6/Garrison | Triggered checkpoint 24916 | -6/Garrison | Destroyed B-75 Beast 25186 | -6/Garrison | Discovered new exit (range 14) 25223 | -6/Garrison | Expanded RIF knowledge: Hotswap 25237 | -6/Garrison | Build established: Scavenger-Tank 25326 | -6/Garrison | Learned Factory security intel 25326 | -6/Garrison | Discovered new exit (range 7) 25326 | -6/Garrison | Discovered new exit (range 82) 25326 | -6/Garrison | Discovered new exit (range 50) 25440 | -6/Garrison | Rescued a captive Derelict 25440 | -6/Garrison | Rescued a captive Derelict 25513 | -6/Garrison | Triggered checkpoint 25731 | -6/Garrison | Triggered checkpoint 26342 | -6/Garrison | Build established: Commander-Tank 26461 | -6/Garrison | Entered Factory 26461 | -5/Factory | Accompanied by 5 allies 26461 | -5/Factory | Evolved 2 slots: Utility x2 26718 | -5/Factory | Discovered new exit (range 11) 26897 | -5/Factory | Identified exit to Garrison 27101 | -5/Factory | Repaired Lyr. Medium Armor Plating 27114 | -5/Factory | Garrison activated, responded to threat 27179 | -5/Factory | Destroyed 8 combat bots 27188 | -5/Factory | Lost 4 allies 27189 | -5/Factory | Entered Garrison 27258 | -5/Garrison | Rewired B-86 Titan 27288 | -5/Garrison | Rewired B-75 Beast 27384 | -5/Garrison | Build established: Scavenger-Gunner 27479 | -5/Garrison | Triggered checkpoint 27549 | -5/Garrison | Garrison Relay disabled 27621 | -5/Garrison | Triggered checkpoint 27621 | -5/Garrison | Triggered checkpoint 27693 | -5/Garrison | Triggered checkpoint 27760 | -5/Garrison | Triggered checkpoint 27832 | -5/Garrison | Expanded RIF knowledge: Coupler Efficiency 27853 | -5/Garrison | Build established: Scavenger-Tank 28071 | -5/Garrison | Triggered checkpoint 28077 | -5/Garrison | Discovered new exit (range 11) 28110 | -5/Garrison | Triggered checkpoint 28184 | -5/Garrison | Garrison Relay disabled 28203 | -5/Garrison | Found embedded Infiltrators 28383 | -5/Garrison | Triggered checkpoint 28442 | -5/Garrison | Triggered checkpoint 28466 | -5/Garrison | Build established: Bothacker-Tank 28559 | -5/Garrison | Triggered checkpoint 28748 | -5/Garrison | Spotted B-75 Beast 28783 | -5/Garrison | Lost 3 allies 28787 | -5/Garrison | Found Relay Coupler [Proto] 28790 | -5/Garrison | Found Relay Coupler [Proto] 28796 | -5/Garrison | Found Relay Coupler [Proto] 28799 | -5/Garrison | Found Relay Coupler [Proto] 28836 | -5/Garrison | Discovered new exit (range 11) 28977 | -5/Garrison | Triggered checkpoint 29078 | -5/Garrison | Build established: Botlord-Tank 29122 | -5/Garrison | Discovered new exit (range 10) 29540 | -5/Garrison | Entered Factory 29540 | -4/Factory | Accompanied by 7 allies 29540 | -4/Factory | Evolved 2 slots: Power x1, Utility x1 29759 | -4/Factory | Discovered new exit (range 25) 29790 | -4/Factory | First assault squad dispatched 29920 | -4/Factory | Identified exit to Upper Caves 29975 | -4/Factory | Lost 5 allies 30273 | -4/Factory | Destroyed 7 combat bots 30293 | -4/Factory | Lost 4 allies 30821 | -4/Factory | Repaired Imp. Heavy Treads 31049 | -4/Factory | Discovered new exit (range 16) 31127 | -4/Factory | Identified exit to Research 31156 | -4/Factory | Discovered new exit (range 12) 31175 | -4/Factory | Entered Extension 31438 | -4/Extension | Build established: Botlord-Gunner 31789 | -4/Extension | Rescued a captive Derelict 31790 | -4/Extension | Unchained authorized (CL-0N3) 31790 | -4/Extension | Rescued a captive Derelict 31864 | -4/Extension | Rescued a captive Derelict 31864 | -4/Extension | Rescued a captive Derelict 31905 | -4/Extension | Rescued a captive Derelict 31907 | -4/Extension | Rescued a captive Derelict 32020 | -4/Extension | Rescued a captive Derelict 32043 | -4/Extension | U-05 Engineer reconstituted as S7 Guard 32052 | -4/Extension | Allies destroyed S7 Guard 32052 | -4/Extension | S7 Guard reconstituted as CL-0N3 32417 | -4/Extension | H-81 Overseer reconstituted as CL-0N3 32438 | -4/Extension | Lost 6 allies 32474 | -4/Extension | Spotted B-86 Titan 32481 | -4/Extension | Destroyed B-86 Titan 32501 | -4/Extension | Spotted B-86 Titan 32519 | -4/Extension | Allies destroyed B-86 Titan 32547 | -4/Extension | Lost 5 parts (1p2u2w) 32608 | -4/Extension | Rescued a captive Derelict 32610 | -4/Extension | Rescued a captive Derelict 32659 | -4/Extension | Spotted Cetus Guard 32664 | -4/Extension | Allies destroyed Cetus Guard 32664 | -4/Extension | Cetus Guard reconstituted as CL-0N3 32681 | -4/Extension | Allies destroyed CL-0N3 32723 | -4/Extension | Lost 4 allies 32726 | -4/Extension | Extracted schematics, analyses from CL-0N3's data core 32821 | -4/Extension | Build established: Botlord-Tank 32969 | -4/Extension | Rescued A7 33055 | -4/Extension | Rescued a captive Derelict 33057 | -4/Extension | Rescued a captive Derelict 33175 | -4/Extension | First assault squad dispatched 33175 | -4/Extension | Discovered exit to Research (range 10) 33181 | -4/Extension | Disrupted transfer network 33197 | -4/Extension | Discovered new exit (range 7) 33391 | -4/Extension | Found Powered Armor 33392 | -4/Extension | Entered Cetus 33392 | -4/Cetus | Accompanied by 14 allies (A7) 33397 | -4/Cetus | Acquired a Cetus Manufacturing Module code from A7 33403 | -4/Cetus | Spotted Cetus Guard 33404 | -4/Cetus | Spotted Cetus Guard 33414 | -4/Cetus | Spotted Cetus Guard 33414 | -4/Cetus | Spotted Cetus Guard 33418 | -4/Cetus | Destroyed Cetus Guard 33422 | -4/Cetus | Allies destroyed Cetus Guard 33425 | -4/Cetus | Destroyed Cetus Guard 33428 | -4/Cetus | Allies destroyed Cetus Guard 33456 | -4/Cetus | Lost 4 allies 33567 | -4/Cetus | Started Cetus Manufacturing Module 33592 | -4/Cetus | Manufactured an Enhanced Grunt 33596 | -4/Cetus | Discovered new exit (range 15) 33617 | -4/Cetus | Manufactured an Enhanced Grunt 33626 | -4/Cetus | Discovered exit to Research (range 27) 33637 | -4/Cetus | Allies destroyed Cetus Guard 33640 | -4/Cetus | Destroyed Cetus Guard 33642 | -4/Cetus | Manufactured an Enhanced Grunt 33644 | -4/Cetus | Spotted Cetus Guard 33644 | -4/Cetus | Spotted Cetus Guard 33648 | -4/Cetus | Allies destroyed Cetus Guard 33654 | -4/Cetus | Destroyed Cetus Guard 33667 | -4/Cetus | Manufactured an Enhanced Grunt 33686 | -4/Cetus | Met Revision 17 33692 | -4/Cetus | Manufactured an Enhanced Grunt 33849 | -4/Cetus | Escorted A7 to Cetus Mainframe 34072 | -4/Cetus | Murdered A7 34079 | -4/Cetus | Extracted ID and sensor layout for unrecognized location from A7's data core 34115 | -4/Cetus | Entered Archives 34115 | -4/Archives | Accompanied by 13 allies 34335 | -4/Archives | Discovered new exit (range 16) 34446 | -4/Archives | System corruption reached 10% 34593 | -4/Archives | Discovered exit to Research (range 16) 35148 | -4/Archives | Discovered new exit (range 15) 35692 | -4/Archives | Entered Hub_04(d) 35692 | -4/Hub_04(d) | Accompanied by 11 allies 35724 | -4/Hub_04(d) | Identified exit to Garrison 35904 | -4/Hub_04(d) | Discovered exit to Research (range 12) 35973 | -4/Hub_04(d) | Lost 4 allies 36009 | -4/Hub_04(d) | Network Hub disabled 36048 | -4/Hub_04(d) | Lost 3 allies 36071 | -4/Hub_04(d) | Unchained authorized (DW-4LL) 36156 | -4/Hub_04(d) | Entered Garrison 36156 | -4/Garrison | Accompanied by 2 allies 36209 | -4/Garrison | Triggered checkpoint 36268 | -4/Garrison | Garrison Relay disabled 36536 | -4/Garrison | Spotted B-86 Titan 36544 | -4/Garrison | Triggered checkpoint 36555 | -4/Garrison | Triggered checkpoint 36570 | -4/Garrison | Triggered checkpoint 36593 | -4/Garrison | Lost 4 allies 36625 | -4/Garrison | Expanded RIF knowledge: Autoassimilate 36670 | -4/Garrison | Discovered exit to Research (range 10) 36689 | -4/Garrison | Triggered checkpoint 36863 | -4/Garrison | Triggered checkpoint 36893 | -4/Garrison | Discovered exit to Research (range 61) 36893 | -4/Garrison | Discovered exit to Research (range 41) 36893 | -4/Garrison | Discovered exit to Research (range 32) 37845 | -4/Garrison | Entered Research 37845 | -3/Research | Accompanied by 4 allies 37845 | -3/Research | Evolved 2 slots: Propulsion x2 38045 | -3/Research | Revision forces began assault on 0b10 38077 | -3/Research | Met up with Revision 17++ 38081 | -3/Research | Discovered new exit (range 12) 38456 | -3/Research | Repaired Adv. KE Penetrator? 38487 | -3/Research | Discovered new exit (range 16) 38498 | -3/Research | Repaired Adv. KE Penetrator? 38545 | -3/Research | Research terminal network offline 38885 | -3/Research | Found Unknown Launcher 38885 | -3/Research | Identified Fusion Bomb Launcher 39006 | -3/Research | Spotted Striker 39011 | -3/Research | Destroyed Striker 39097 | -3/Research | Spotted Striker 39098 | -3/Research | Destroyed Striker 39101 | -3/Research | Destroyed Executioner 39163 | -3/Research | Found Exp. Targeting Computer 39168 | -3/Research | Found Exp. Core Analyzer 39279 | -3/Research | Identified exit to Testing 39694 | -3/Research | Entered Testing 39827 | -3/Testing | Found Prototype Protection 39827 | -3/Testing | Identified Med. Regenerative Plating 39833 | -3/Testing | Found Prototype Protection 39833 | -3/Testing | Identified SHELL Armor 39841 | -3/Testing | Found Med. Regenerative Plating 39845 | -3/Testing | Found Med. Regenerative Plating 39908 | -3/Testing | Unchained authorized (DW-4LL) 40153 | -3/Testing | Spotted Alpha 7 40185 | -3/Testing | Rewired JF-LKA(K) 40187 | -3/Testing | Rewired 6T-KQP(K) 40188 | -3/Testing | Rewired 1V-69U(K) 40210 | -3/Testing | DW-4LL burst out of a wall 40235 | -3/Testing | Unstable Terrabomb Derivative detonated 40235 | -3/Testing | System corruption reached 10% 40264 | -3/Testing | Destroyed DW-4LL 40266 | -3/Testing | Lost 3 allies 40288 | -3/Testing | Assimilated Alpha 7 with formatsys_high 40292 | -3/Testing | System corruption reached 30% 40304 | -3/Testing | Lost 11 parts (2p6u3w) 40575 | -3/Testing | Found Prototype Ballistic Gun 40576 | -3/Testing | Identified DW-4LL's Megashotty 40589 | -3/Testing | Found Prototype Processor 40589 | -3/Testing | Identified Exp. Armor Integrity Analyzer 40593 | -3/Testing | Found ID Mask 40627 | -3/Testing | Discovered new exit (range 23) 40656 | -3/Testing | Found Portable AFG 40913 | -3/Testing | Found Prototype Energy Cannon 40913 | -3/Testing | Identified Null Cannon 41112 | -3/Testing | Lost 3 parts (1p1u1w) 41142 | -3/Testing | Found Prototype Ballistic Cannon 41142 | -3/Testing | Identified Omega Cannon 41176 | -3/Testing | Build established: Botlord-Gunner 41228 | -3/Testing | Found Prototype Leg 41228 | -3/Testing | Identified Myomer Exoskeleton 41551 | -3/Testing | Spotted Striker 41621 | -3/Testing | Spotted Striker 41622 | -3/Testing | Autoassimilated Striker with RIF 41709 | -3/Testing | Found Prototype Device 41709 | -3/Testing | Identified Exp. Shock Absorption System 41728 | -3/Testing | Spotted PG-7CURUVRSGA 41735 | -3/Testing | Destroyed PG-7CURUVRSGA 41740 | -3/Testing | Found Exp. Weapon Cycler 41981 | -3/Testing | Found Prototype Energy Cannon 41981 | -3/Testing | Identified Cld. Nova Cannon 42033 | -3/Testing | Entered Research 42033 | -2/Research | Evolved 2 slots: Utility x2 42263 | -2/Research | Identified exit to Access 42610 | -2/Research | P-80 Master assimilated allied Director 9b 42678 | -2/Research | Identified exit to Quarantine 42814 | -2/Research | System corruption reached 10% 42897 | -2/Research | Build established: Bothacker-Gunner 42970 | -2/Research | Entered Quarantine 43010 | -2/Quarantine | Cryocooling Duct disabled 43025 | -2/Quarantine | Ambient heat levels rising (+20) 43025 | -2/Quarantine | Non-combat units ordered to evacuate 43093 | -2/Quarantine | Found Alien Artifact 43093 | -2/Quarantine | Identified Dimensional Node Initializer 43093 | -2/Quarantine | Initialized slip node 43104 | -2/Quarantine | Found Dimensional Node Initializer 43112 | -2/Quarantine | Found Alien Artifact 43116 | -2/Quarantine | Found Alien Artifact 43505 | -2/Quarantine | Identified exit to Garrison 44025 | -2/Quarantine | Identified exit to Section 7 44054 | -2/Quarantine | Found Alien Artifact 44076 | -2/Quarantine | Found Hellfire Missile Launcher 44084 | -2/Quarantine | Learned Research trap positions 44133 | -2/Quarantine | Learned Research emergency access door positions 44171 | -2/Quarantine | Learned Section 7 trap positions 44200 | -2/Quarantine | Learned location of 1 exit from Section 7 44238 | -2/Quarantine | Learned Section 7 stockpile data 44251 | -2/Quarantine | Cryocooling Duct disabled 44266 | -2/Quarantine | Ambient heat levels rising (+20) 44266 | -2/Quarantine | Combat units ordered to evacuate 44276 | -2/Quarantine | Identified Core Reset Matrix 44276 | -2/Quarantine | Identified Transdimensional Reconstructor (x2) 44366 | -2/Quarantine | Quarantine Guard activated 44493 | -2/Quarantine | Spotted Quarantine Guard 44519 | -2/Quarantine | Destroyed Quarantine Guard 44571 | -2/Quarantine | Spotted Quarantine Guard 44582 | -2/Quarantine | Destroyed Quarantine Guard 44631 | -2/Quarantine | Build established: Scavenger-Tank 44760 | -2/Quarantine | Spotted Quarantine Guard 44791 | -2/Quarantine | Destroyed Quarantine Guard 44794 | -2/Quarantine | Spotted Quarantine Guard 44807 | -2/Quarantine | Destroyed Quarantine Guard 44887 | -2/Quarantine | Cryocooling Duct disabled 44902 | -2/Quarantine | Ambient heat levels rising (+20) 44948 | -2/Quarantine | Spotted Quarantine Guard 44965 | -2/Quarantine | Destroyed Quarantine Guard 45006 | -2/Quarantine | Spotted Quarantine Guard 45033 | -2/Quarantine | Destroyed Quarantine Guard 45087 | -2/Quarantine | Spotted Quarantine Guard 45102 | -2/Quarantine | Destroyed Quarantine Guard 45111 | -2/Quarantine | Build established: Scavenger-Gunner 45144 | -2/Quarantine | Spotted Quarantine Guard 45163 | -2/Quarantine | Destroyed Quarantine Guard 45551 | -2/Quarantine | Found Unknown Device 45551 | -2/Quarantine | Identified Launcher Loader 45793 | -2/Quarantine | Spotted Quarantine Guard 45817 | -2/Quarantine | Destroyed Quarantine Guard 46036 | -2/Quarantine | Spotted Quarantine Guard 46072 | -2/Quarantine | Destroyed Quarantine Guard 46161 | -2/Quarantine | Found Alien Artifact 46471 | -2/Quarantine | Spotted Fortress 46483 | -2/Quarantine | Assimilated Fortress with formatsys_high 46616 | -2/Quarantine | Spotted Quarantine Guard 46616 | -2/Quarantine | Spotted Quarantine Guard 46623 | -2/Quarantine | Destroyed Quarantine Guard 46632 | -2/Quarantine | Allies destroyed Quarantine Guard 46652 | -2/Quarantine | Discovered new exit (range 5) 46677 | -2/Quarantine | Entered Section 7 46677 | -2/Section 7 | Accompanied by 1 ally 46679 | -2/Section 7 | Loaded intel: 14 trap records 46713 | -2/Section 7 | Identified Subatomic Replicator 47053 | -2/Section 7 | Identified exit to Garrison 47053 | -2/Section 7 | Initialized slip node 47298 | -2/Section 7 | Repaired Huge Storage Unit 47466 | -2/Section 7 | Spotted S7 Guard 47467 | -2/Section 7 | Autoassimilated S7 Guard with RIF 47469 | -2/Section 7 | Garrison activated, responded to threat 47493 | -2/Section 7 | Found Core Regenerator 47570 | -2/Section 7 | Found Spacefold Activator 47675 | -2/Section 7 | Build established: Botlord-Gunner 47886 | -2/Section 7 | Repaired Arm. Heavy Treads 47919 | -2/Section 7 | Spotted S7 Guard 47920 | -2/Section 7 | Autoassimilated S7 Guard with RIF 48071 | -2/Section 7 | Spotted S7 Guard 48081 | -2/Section 7 | Allies destroyed S7 Guard 48228 | -2/Section 7 | Build established: Scavenger-Gunner 48304 | -2/Section 7 | Found Alien Artifact 48304 | -2/Section 7 | Identified Integrated Mediator 48304 | -2/Section 7 | Installed Integrated Mediator, increased core attachment efficiency 48407 | -2/Section 7 | Spotted Alpha 7 48407 | -2/Section 7 | Spotted Alpha 7 48410 | -2/Section 7 | Assimilated Alpha 7 with formatsys_high 48459 | -2/Section 7 | Allies destroyed Alpha 7 48538 | -2/Section 7 | Spotted B-99 Colossus 48557 | -2/Section 7 | Build established: Scavenger-Tank 48677 | -2/Section 7 | First assault squad dispatched 48767 | -2/Section 7 | Found Alien Artifact 48767 | -2/Section 7 | Identified Integrated Dissipator 48767 | -2/Section 7 | Installed Integrated Dissipator, increased core heat dissipation (+20) 48824 | -2/Section 7 | Found Alien Artifact 48824 | -2/Section 7 | Identified LRC Storage 48824 | -2/Section 7 | Installed LRC Storage, increased inventory capacity (+2) 48827 | -2/Section 7 | Found Alien Artifact 48827 | -2/Section 7 | Identified LRC Armor 48827 | -2/Section 7 | Installed LRC Armor, increased core integrity (+250) 48888 | -2/Section 7 | Found Alien Artifact 48888 | -2/Section 7 | Identified Core Expander 48888 | -2/Section 7 | Installed Core Expander, added new Power slot 48928 | -2/Section 7 | Warped through subspace to slip node 48954 | -2/Section 7 | Found Exp. Focal Shield 49087 | -2/Section 7 | Garrison activated, responded to threat 49471 | -2/Section 7 | Entered Garrison 49605 | -2/Garrison | Triggered checkpoint 49732 | -2/Garrison | Garrison Relay disabled 50165 | -2/Garrison | QS Assembler disabled 50198 | -2/Garrison | Found Prototype Processor 50198 | -2/Garrison | Identified Exp. Signal Interpreter 50205 | -2/Garrison | Found Prototype Device 50205 | -2/Garrison | Identified Exp. EM Disruption Field 50234 | -2/Garrison | Found Prototype Hackware 50343 | -2/Garrison | Triggered checkpoint 50347 | -2/Garrison | Triggered checkpoint 50367 | -2/Garrison | Spotted B-90 Cyclops 50396 | -2/Garrison | Destroyed 10 combat bots 50475 | -2/Garrison | Destroyed B-90 Cyclops 50624 | -2/Garrison | Discovered exit to Access (range 14) 50648 | -2/Garrison | Garrison Relay disabled 50878 | -2/Garrison | Garrison Relay disabled 50918 | -2/Garrison | Triggered checkpoint 50977 | -2/Garrison | Discovered exit to Access (range 12) 51237 | -2/Garrison | Triggered checkpoint 51420 | -2/Garrison | Discovered exit to Access (range 9) 51463 | -2/Garrison | Triggered checkpoint 51519 | -2/Garrison | Expanded RIF knowledge: Threat Obfuscation 51652 | -2/Garrison | Core integrity fell below 50% 52160 | -2/Garrison | Entered Access 52160 | -1/Access | Accompanied by 2 allies 52160 | -1/Access | Evolved 2 slots: Utility x2 52161 | -1/Access | Identified Exp. System Shield 52575 | -1/Access | Lost 3 parts (1u2w) 52581 | -1/Access | Destroyed 10 combat bots 53160 | -1/Access | First assault squad dispatched 53283 | -1/Access | Discovered new exit (range 7) 53353 | -1/Access | System corruption reached 10% 53797 | -1/Access | Identified exit to Command 54245 | -1/Access | Destroyed 8 combat bots 54684 | -1/Access | Entered Command 55119 | -1/Command | System corruption reached 30% 55983 | -1/Command | Spotted Combat Programmer 56012 | -1/Command | Spotted M Guard 56012 | -1/Command | Spotted Combat Programmer 56027 | -1/Command | Spotted M Guard 56075 | -1/Command | Core integrity fell below 50% 56083 | -1/Command | Used Core Regenerator, restored core integrity (+462) 56098 | -1/Command | Lost 21 parts (3p4n8u6w) 56121 | -1/Command | Core integrity fell below 20% 56134 | -1/Command | Destroyed by P-80 Master with Gamma Rifle Last Messages --------------- 56092_ System corrupted: Matter fused (-8). 56094_ Penetrated by EMDS Slug. 56095_ >> Watcher Feeds: Feed link from W-44 Eye lost. 56095_ Slammed into S-43 Plague. 56095_ Penetrated by EMDS Slug. 56096_ Acquired 9 matter. 56096_ EMDS Slug penetrates Wall. 56104_ Penetrated by EMDS Slug. 56106_ Slammed into K-01 Serf. 56106_ Penetrated by EMDS Slug. 56106_ K-01 Serf destroyed. 56108_ I# >2#HINRVK2NL#DU&HYEIGZ 56110_ Slammed into R-10 Processor. 56117_ >> Watcher Feeds: Established visual feed link with W-44 Eye. 56123_ System corrupted: Heat flow error (+121). 56129_ Penetrated by EMDS Slug. 56130_ Slammed into S-43 Plague. 56131_ Penetrated by EMDS Slug. 56133_ >> Watcher Feeds: Feed link from W-44 Eye lost. 56134_ Adv. Targeting Computer destroyed. Map ----- +----------------------------------------------------+ | ######????????????# #?????????????"" ????????????? | | #????????????# #???????????? ???????????? | | ############## #?????????????[ ???????????? | | % % % ################+### "????? | | ############## "?????? | | #????????????########### ##????????????? | | ##+########?????????????????# #?????????????? | | ?# #?????????????????# #?????????????? | | ## #?????????????????# #?????????????? | | ## #?????????????????# #?????????????? | | ## """"#?????????????????# #?????????????? | | ## """"#?????????????????# #?????????????? | | ## """"#?????????????????# #?????????????? | | ## """"#?????????????????# #?????????????? | | ## #?????????????????# #?????????????? | | %/ #?????????????????# #### #?????????????? | | ###########?????????????????# ####+###??########## | | ????????????????????????????# # #??# """ | | ????????????????????????????# # #??# ""T"" | | ????????????????????????????#pks s=w #??# "" "" | | ????????????????????????????# #s == ####] | | ????????????????????????????# #ss== + + | | ????????????????????????????# # p #### | | ????????????????????????????# s#######??# | | ???????????????????????######s##????????# | | ???????????????????????# @ k#????????###+###### | | ???????????????????????# #????????????????# | | ?????????#######+####### #????????????????# | | ?????????# w #????????????????# | | ?????????# #????????????????# | | ?????????# ^ R #????????????????# | | ?????????# #???????????????? | | ?????????# k ???????????# " | | ?????????# #################p##### ?????????# T | | ?????????#??????????????????? ???????????????# | | ????????????????????????????? #??????????????# | | ?????????????????????????????? ]#??????????????# # | | ?????????????????????????????? ??????????????? ? | | ?????????????????????????????? +??????????????##? | | ??????????????????????????????? #????????????????? | | ?????????????????????????????????????????????????? | | ?????????????????????????????????????????????????? | | ?????????????????????????????????????????????????? | | ?????????????????????????????????????????????????? | | ?????????????????????????????????????????????????? | | ?????????????????????????????????????????????????? | | ?????????????????????????????????????????????????? | | ?????????????????????????????????????????????????? | | ?????????????????????????????????????????????????? | | ?????????????????????????????????????????????????? | +----------------------------------------------------+ Best States ------------- Heat Dissipation 162 Energy Generation 73 Energy Capacity 1005 Matter Stores 747 Matter Capacity 800 Sight Range 16 Robot Scan Range 16 Terrain Scan Range 24 Terrain Scan Density 10 Jamming Range 16 Cloak Strength 2 Base Temperature (-) 200 Armor Coverage 900 Resistance: KI 30 Resistance: EX 75 Weapon Shielding 66 Weapon Cycling 30 Evasion (%) 55 Targeting Accuracy 12 Core Analysis 8 Armor Integrity Analysis 50 Recoil Reduction 6 Energy Filtering 30 Kinecelleration 40 Offensive Hacking 14 Defensive Hacking 16 Relay Coupler Types 3 Relay Coupler Value 92 Item Schematics ----------------- Huge Storage Unit | -10/Materials | Hacked Plasma Cutter | -9/Materials | Hacked Seismic Detector | -9/Materials | Scanalyzed Adv. System Restoration Module | -7/Factory | Hacked Imp. Component Analysis Suite | -7/Factory | Hacked Adv. Energy Well | -3/Testing | Archive Exp. Focal Shield | -3/Testing | Archive Centrium Greatsword | -3/Testing | Archive Adv. Micro-nuke Launcher | -3/Testing | Archive Tiamat Missile Launcher | -3/Testing | Archive Cld. Nuclear Pulse Thruster | -3/Testing | Archive Spectral Analyzer | -3/Testing | Archive Adv. Dynamic Insulation System | -3/Testing | Archive Proton Burst Cannon | -3/Testing | Archive Exp. Weapon Cycler | -2/Quarantine | Scanalyzed Hds. Centrium Leg | -2/Section 7 | Archive Cld. Phase Cannon | -2/Section 7 | Archive Cld. Linear Gravjet | -2/Section 7 | Archive Imp. Q-thruster | -2/Section 7 | Archive Enh. Gamma Bomb Array | -2/Section 7 | Archive Robot Schematics ------------------ M-13 Machinist | -10/Materials | Hacked K-01 Serf | -4/Extension | Archive T-07 Excavator | -4/Extension | Archive A-02 Transporter | -4/Extension | Archive A-15 Conveyor | -4/Extension | Archive R-06 Scavenger | -4/Extension | Archive R-10 Processor | -4/Extension | Archive M-14 Sweeper | -4/Extension | Archive M-22 Extractor | -4/Extension | Archive M-30 Cleanser | -4/Extension | Archive M-28 Smith | -4/Extension | Archive M-36 Artificer | -4/Extension | Archive O-16 Technician | -4/Extension | Archive O-24 Administrator | -4/Extension | Archive O-32 Director | -4/Extension | Archive W-16 Scout | -4/Extension | Archive W-25 Informer | -4/Extension | Archive W-44 Eye | -4/Extension | Archive S-10 Pest | -4/Extension | Archive S-27 Virus | -4/Extension | Archive S-43 Plague | -4/Extension | Archive G-34 Mercenary | -4/Extension | Archive G-47 Trooper | -4/Extension | Archive G-50 Soldier | -4/Extension | Archive G-67 Veteran | -4/Extension | Archive G-73 Enforcer | -4/Extension | Archive B-36 Bruiser | -4/Extension | Archive B-48 Gladiator | -4/Extension | Archive B-60 Warrior | -4/Extension | Archive B-74 Champion | -4/Extension | Archive L-31 Rogue | -4/Extension | Archive L-41 Fighter | -4/Extension | Archive L-61 Swordsman | -4/Extension | Archive Y-45 Defender | -4/Extension | Archive Y-54 Guardian | -4/Extension | Archive Y-64 Sentinel | -4/Extension | Archive Y-72 Warden | -4/Extension | Archive D-53 Grenadier | -4/Extension | Archive D-63 Destroyer | -4/Extension | Archive D-83 Annihilator | -4/Extension | Archive X-57 Shotgunner | -4/Extension | Archive X-62 Marksman | -4/Extension | Archive X-67 Chaingunner | -4/Extension | Archive X-72 Disruptor | -4/Extension | Archive X-77 Beamer | -4/Extension | Archive X-82 Rainmaker | -4/Extension | Archive X-87 Electro | -4/Extension | Archive H-55 Commando | -4/Extension | Archive H-66 Slayer | -4/Extension | Archive H-77 Assassin | -4/Extension | Archive H-88 Terminator | -4/Extension | Archive P-60 Hacker | -4/Extension | Archive P-70 Sage | -4/Extension | Archive P-80 Master | -4/Extension | Archive A-27 Freighter | -3/Testing | Archive Fabricated ------------ Nothing Repaired ---------- Lgt. Treads | 11% | -10/Materials Lgt. Treads | 37% | -10/Materials Lgt. Treads | 49% | -10/Materials Lgt. Treads | 47% | -9/Materials Hvy. Ion Engine | 51% | -9/Materials Imp. Assault Rifle | 58% | -9/Materials Med. Armor Plating | 40% | -9/Materials Hvy. Ion Engine | 38% | -8/Materials | Broken Imp. Assault Rifle | 32% | -8/Materials Lyr. Medium Armor Plating | 50% | -5/Factory Imp. Heavy Treads | 32% | -4/Factory Adv. KE Penetrator | 14% | -3/Research Adv. KE Penetrator | 26% | -3/Research Huge Storage Unit | 17% | -2/Section 7 Arm. Heavy Treads | 31% | -2/Section 7 Studied --------- Lgt. Treads | -9/Materials | Hacked Imp. Grenade Launcher | -8/Materials | Hacked Nuclear Core | -8/Materials | Hacked Gatling Laser | -5/Factory | Hacked Micro-nuke Launcher | -3/Research | Hacked Com. HERF Cannon | -3/Research | Hacked Fusion Bomb Launcher | -2/Research | Hacked Quantum Reactor | -2/Quarantine | Hacked Enh. Quantum Rifle | -2/Quarantine | Hacked Railgun | -1/Access | Hacked Alien Tech Used ----------------- Dimensional Node Initializer Subatomic Replicator Spacefold Activator Integrated Mediator Integrated Dissipator LRC Storage LRC Armor Core Expander Transdimensional Reconstructor Core Regenerator Achievements -------------- Be The Sidekick Bigger And Badder Cool Guys Zeroed Repercussions Challenges ------------ None Game ------ Seed ThrusterStealthDetonator Manual? 0 Play Time 11:46:24 Cumulative 370.2 hours Start 2025.10.29 @ 22:00:38 End 2025.11.02 @ 20:31:36 Sessions 7 Manual Loads 0 Difficulty Rogue Special Mode None Game No. 139 Rogue 139 Adventurer 0 Explorer 0 Win Type - Total 8 Types 4/0/2/1/0/0/1/0/0/0 Lore% 65 Gallery% 77 Achievement% 54 Wizard Run 0 Options --------- Layout 0 ASCII 0 Keyboard 0 Movement Numpad Keybinds 1 Fullscreen 2 Font 18/X11 Map View 76x50 Zoom Use 0% Tactical HUD 1 Map Filters NONE Filters NONE Steam 1 RUN: 3aea63ad-2b3c-41da-841a-8838cae62900